{"text_format":"1","workbook":"xlsx","n_sheets":3,"sheets":["Bauteile","BKPListe","eBKP-H"],"not_rendered":{"charts":0,"images":0,"macros":1,"external_links":0,"defined_names":43,"comments":0,"pivot_tables":0},"unopened":[],"bounds":{"document_bytes":16777216,"sheet_cells":100000,"rows_first":2000,"rows_last":500,"rows_between":2000,"halvings":0,"cell_chars":16384,"cell_head_chars":4096},"cells_cut":0,"cells_raw":0,"read":"whole","date_system":"1900"}

{"sheet":"Bauteile","index":0,"n_rows":499,"n_cols":10,"rows_kept":499,"cut":false,"hidden":false,"merged":[]}
["BKP","eBKP-H","Beschreibung","Untertitel","Bauteil","Einheit","2024 ","2023 ","2022 "]
["101","B 01.02","Bestandesaufnahmen",null,"Gebäudeaufnahme Rissprotokolle","gl",10,"    ","    ",""]
["102","B 01.01",{"$f":"IF(A3=0,\"\",LOOKUP(A3,BKP,Baukostenplan))","v":"Baugrunduntersuchungen"},null,"Untersuchung","gl",11]
["102","B 01.03","Baugrunduntersuchungen","Umweltmessungen","Materialanalysen (falls Schadstoffe).","gl",12]
["287","G 06.03","287 Baureinigung",null,"Spülen der Schmutz- und Meteorleitungen.","gl",13]
["111","B 05.01","Rodungen",null,"Roden bestehender Sträucher und Bäume.","m2",14]
["112",null,"Abbrüche","Rückbau nicht kontaminiertes Bauwerk","Budgetbetrag für Entrümpelung. Verrechung nach effektivem Aufwand.","gl",15]
["112","B 05.02","Abbrüche","Rückbau nicht kontaminiertes Bauwerk","Abbrüche /  Demontagen","m3",16]
["119","B 05.03","Übriges","Rückbau kontaminiertes Bauwerk","Abbruch","m3",17]
["119","B 05.03","Übriges","Rückbau kontaminiertes Bauwerk","Zusätzliche Entsorgungsgebühren.","m3",18]
["119",null,"Übriges","Rückbau kontaminiertes Bauwerk","Schadstoffsanierung. \nVerrechung nach effektivem Aufwand.","gl",19]
["120","B 03","Übergangsposition",null,"Sicherung und Provisorien.","gl",20]
["13","B 02.01","Gemeinsame Baustelleneinrichtung",null,"Prozentsatz von BKP 2-4","%",21]
["131","B 02.01","Abschrankungen",null,"Signalisation u.d.gl.","gl",22]
["132","B 02.01","Zufahrten, Plätze",null,"Zufahrten und Plätze","m2",23]
["132","B 02.01","Zufahrten, Plätze",null,"Provisorische Parkplätze","Stk.",24]
["133","B 02.03","Büro Bauleitung",null,"Einr. + Vorh. Bauleitungscontainer (LE=St x Mt).","LE",25]
["135.0","B 02.02","Kanalisationen","Provisorische Installationen",null,"gl",26]
["135.1","B 02.02","Elektro","Provisorische Installationen","Einr. + Vorh. Baustromverteiler 2 Stk","Mnt.",27]
["135.1","B 02.02","Elektro","Provisorische Installationen","Längeres Vorh. Baustromv. 2 Stk","Mnt.",28]
["135.3","B 02.02","Wasser","Provisorische Installationen",null,"gl",29]
["136","B 02.02","Kosten für Energie, Wasser und dgl      .",null,"Verbr.+Ents. Baustrom, -wasser, -heizung","Mnt.",30]
["139","B 02.06","Übriges",null,"Winterbaumassnahmen.","m2",31]
["150",null,"Übergangsposition","Telekommunikationsleitung","Nur Kabel.","m",32]
["150",null,"Übergangsposition","Wasserleitung",null,"m",33]
["151","B 04","Erdarbeiten","Aushub und Hinterfüllung","Für sämtliche Werkleitungen (Wasser, Elektro, Medien).","m3",34]
["152",null,"Kanalisationsleitungen",null,"Kanalisation inkl. Schächte, Grabarbeiten und Spülung.","pl",35]
["153",null,"Elektroleitungen",null,"Hüllrohre inkl. Schächte.","m",36]
["153",null,"Elektroleitungen",null,"Stark.- Schwachstrom","m",37]
["153",null,"Elektroleitungen",null,"Bestehende Leitungen umlegen inkl. Grabarbeiten.","m",38]
["154","B 04","Heizungs-, Lüftungs-, Klima-, Kälteleitungen","Fernwärme, Fernbkälte","Heizungs- und Kälteleitung.","m",39]
["154","B 04.08","Heizungs-, Lüftungs-, Klima-, Kälteleitungen","Gasleitung",null,"m",40]
["172","B 06.03","Baugrubenabschlüsse","Böschungssicherung","Spritzbeton.","m2",41]
["172","B 06.03","Baugrubenabschlüsse","Böschungssicherung","Nagelwände.","m2",42]
["172","B 06.04","Baugrubenabschlüsse",null,"Spundwand.","m2",43]
["172","B 06.04","Baugrubenabschlüsse",null,"Rühlwand.","m2",44]
["172","B 06.04","Baugrubenabschlüsse",null,"Bohrpfahlwand.","m2",45]
["175","C 01.01","Grundwasserabdichtungen",null,"Feuchtigkeitsabdichtung DK 2.","GGF",46]
["175","C 01.01","Grundwasserabdichtungen",null,"Feuchtigkeitsabdichtung DK 1.","GGF",47]
["175","E 01.01","Grundwasserabdichtungen","Abdichtung, Beschichtung unter Terrain","Abdichtung DK 2 Wände UG.","m2",48]
["175","E 01.01","Grundwasserabdichtungen","Abdichtung, Beschichtung unter Terrain","Abdichtung DK 1 Wände UG.","m2",49]
["176","B 06.06","Wasserhaltung",null,"Wasserhaltung für Oberflächenwasser.","gl",50]
["176","B 06.06","Wasserhaltung",null,"Gebühren für Einleitung Meteorwasser in Kanalisation.","m3",51]
["176","B 06.06","Wasserhaltung",null,"Grundwasserabsenkung","m3",52]
["201.1","B 06.01","Erdarbeiten","Nicht kontaminierter Aushub","Oberboden maschinell mit seitlicher Lagerung.","m3",53]
["201.1","B 06.01","Erdarbeiten","Nicht kontaminierter Aushub","Aushub maschinell mit seitlicher Lagerung.","m3",54]
["201.1","B 06.01","Erdarbeiten","Nicht kontaminierter Aushub","Sohlenaushub letzte 20cm.","m3",55]
["201.1","B 06.01","Erdarbeiten","Nicht kontaminierter Aushub","Transport Oberboden auf Deponie Baustelle.","m3",56]
["201.1","B 06.01","Erdarbeiten","Nicht kontaminierter Aushub","Transport Oberboden auf Deponie Unternehmer.","m3",57]
["201.1","B 06.01","Erdarbeiten","Nicht kontaminierter Aushub","Transport Aushub auf Deponie Unternehmer.","m3",58,12,11]
["201.1","B 06.01","Erdarbeiten","Nicht kontaminierter Aushub","Gebühren Oberboden (Lagerung oder Abgabe).","m3",59]
["201.1","B 06.01","Erdarbeiten","Nicht kontaminierter Aushub","Gebühren Aushub (Lagerung oder Abgabe).","m3",60]
["201.1","B 06.02","Erdarbeiten","Kontaminierter Aushub","Kontaminierter Aushub baggerfähig.","m3",61]
["201.1","B 06.02","Erdarbeiten","Kontaminierter Aushub","Zusätzliche Gebühren.","m3",62]
["201.1","B 06.03","Erdarbeiten","Böschungssicherung","Einfache Baugrubensicherung mit PE-Folie.","m2",63]
["201.1","B 06.05","Erdarbeiten","Materialeinbau","Einbringen Hinterfüllung von Deponie Baustelle.","m3",64]
["201.1","B 06.05","Erdarbeiten","Materialeinbau","Hinderfüllung maschinell Verdichten.","m3",65]
["201.1","B 06.05","Erdarbeiten","Materialeinbau","Liefern und Einbringen von Sickerkies 32-45mm.","m3",66]
["211.0","B 02.01","Baustelleneinrichtung","Allgemeine Baustelleneinrichtung","Prozentsatz von BKP 2","%",67]
["211.0","B 02.03","Baustelleneinrichtung",null,"Bau-WC (LE=St x Mt)","LE",68]
["211.0","B 02.03","Baustelleneinrichtung",null,"Längeres Vorh. Bau-WC (LE=St x Mt)","LE",69]
["211.0","B 02.04","Baustelleneinrichtung",null,"Baukran (LE=St x Mt)","LE",70]
["211.0","B 02.04","Baustelleneinrichtung",null,"Kranbetrieb für dritte inkl. Bedinung","h",71]
["211.0","B 02.04","Baustelleneinrichtung",null,"Radwaschanlage (LE=St x Mt).","LE",72]
["211.1","B 08.01","Gerüste",null,"Fassadengerüst.","m2",73]
["211.1","B 08.02",{"$f":"IF(A66=0,\"\",LOOKUP(A66,BKP,Baukostenplan))","v":"Gerüste"},null,"Innengerüst.","GF",74]
["211.1","B 08.02","Gerüste",null,"Liftschachtgerüste.","Stk",75]
["211.4","D 09.04","Kanalisationen im Gebäude",null,"Kanalisation unter/in Bodenplatte inkl. Aushub.","GGF",76]
["211.4","D 09.04","Kanalisationen im Gebäude",null,"Versickerungsanlage","GGF",77]
["211.4","D 09.04","Kanalisationen im Gebäude","Abwassersammlung","Kanalisation.","GGF",78]
["211.5","C 01.02","Beton- und Stahlbetonarbeiten",null,"Einzelfundament, Beton horizontal oder im Gefalle bis 3%,","m2",79,1000,800]
["211.5","C 01.03","Beton- und Stahlbetonarbeiten",null,"Bodenplatte, Beton horizontal oder im Gefalle bis 3%,","m2",80]
["211.5","C 02.01","Beton- und Stahlbetonarbeiten","Aussenwand","Aussenwandkonstruktion Betonwände","m2",81]
["211.5","C 02.02","Beton- und Stahlbetonarbeiten","Innenwand","Innenwandkonstruktion Betonwände","m2",82]
["211.5","C 04.01","Beton- und Stahlbetonarbeiten",null,"Geschossdecke in Beton","m2",83]
["211.5","C 04.04","Beton- und Stahlbetonarbeiten",null,"Flachdachkonstruktion in Beton","m2",84]
["211.5","C 04.08","Beton- und Stahlbetonarbeiten","Aussen liegende  Konstruktion, Vordach","Kragplattenanschlüsse gedämmt.","m",85]
["211.5","C 04.08","Beton- und Stahlbetonarbeiten","Aussen liegende  Konstruktion, Vordach","Balkone","m2",86]
["211.5","C 05.01","Beton- und Stahlbetonarbeiten","Durchbruch, Schlitz zu Konstruktion","Regie Baumeister, Prozent von BKP 23, 24, 25, 26","%",87]
["211.5","C 05.01","Beton- und Stahlbetonarbeiten","Durchbruch, Schlitz zu Konstruktion","Durchbruch, Schlitz zu Konstruktion, Prozent von BKP 23, 24, 25, 26","%",88]
["211.5","C 01 03","Beton- und Stahlbetonarbeiten",null,"Bodenplatte aus Stahlfaserbeton (ca. 35Kg/m3)","m2",89]
["211.6","C 02.01","Maurerarbeiten","Backstein","Aussenwandkonstruktion Backstein","m2",90]
["211.6","C 02.01","Maurerarbeiten","Dämmbackstein","Aussenwand Dämmbackstein Imbrex z7 inkl. Leibungen und Stürze","m2",91]
["211.6","C 02.02","Maurerarbeiten",null,"Innenwandkonstruktion Backstein","m2",92]
["211.6","C 02.02","Maurerarbeiten",null,"Innenwandkonstruktion Backstein","m2",93]
["211.6","C 02.02","Maurerarbeiten",null,"Innenwandkonstruktion Kalksandstein","m2",94]
["211.6","C 02.02","Maurerarbeiten",null,"Stürze zu Mauerwerke","m",95]
["211.6","C 05.02","Maurerarbeiten","Ergänzende Leistungen","Zu Maurerarbeiten wie Mörtel Stahlzargen und dgl, Prozent von BKP 27+28","%",96]
["211.9","C 01.01",0,"Abdichtung, Dämmung Bodenplatte","Perimeterdämmung XPS 500, 160mm.","m2",97]
["211.9","E 01.02",0,"Aussenwärmedämmung unter Terrain","Perimeterdämmung.","m2",98]
["211.9","E 01.03",0,null,"Schutzschicht unter Terrain.","m2",99]
["212.2","C 03.01","Elemente aus Beton","Aussenstütze vorfabriziert","Vorfabrizierte Betonstützen 20x20cm.","m",100]
["212.2","C 03.02","Elemente aus Beton","Innenstütze vorfabriziert","Vorfabrizierte Betonstützen 20x20cm.","m",101]
["212.2","C 04.02","Elemente aus Beton","Innen liegende Treppen, Rampe","Vorfabrizierte innen Treppen in Beton. \n(Gemessene Aufsichtsfläche)","m2",102]
["212.2","C 04.03","Elemente aus Beton","Innen liegendes Podest","Vorfabrizierte innen Podest in Beton.","m2",103]
["212.2","C 04.06","Elemente aus Beton","Aussen liegende Treppe, Rampe","Vorfabrizierte aussen Treppen in Beton.","m2",104]
["212.2","C 04.07","Elemente aus Beton","Aussen liegendes Podest","Vorfabrizierte aussen Podest in Beton.","m2",105]
["212.2","E 02.06","Elemente aus Beton","Aussen liegende Absturzsicherung","Balkonbrüstungen Beton.","m",106]
["212.2","C 01.04","Elemente aus Beton",null,"Erdverbundene Treppe, Rampe","m2",107]
["212.2","C 01.05","Elemente aus Beton",null,"Erdverbundenes Podest.","m2",108]
["214.1","C 04.05","Traggerippe (Zimmermanns- konstruktionen)","Konstruktion geneigtes Dach","Konstruktion geneigtes Dach in Holz.","m2",109]
["215.2","E 02.03","Fassadenbau","Hinterlüftete Fassadensysteme","Lattenrost ausgedämmt, hinterl. Faserzementplatten.","m2",110]
["217","C 05.02","Schutzraumabschlüsse","Schutzraumbauteile","Panzertüre.","Stk.",111]
["217","C 05.02","Schutzraumabschlüsse","Schutzraumbauteile","Fluchtröhre.","m1",112]
["221.1","E 03.01","Fenster aus Holz/Metall","Fenster Test","Hebeschiebe in Holz/Metall (mit SIGAB).","m2",113,"800",650]
["221.1","E 03.01","Fenster aus Holz/Metall","Fenster","Hebeschiebe in Holz/Metall (mit SIGAB).","m2",114]
["221.1","E 03.01","Fenster aus Holz/Metall","Fenster Test","Hebeschiebe in Holz/Metall (mit SIGAB).","m2",115,150]
["221.2","E 03.01","Fenster aus Kunststoff","Fenster","Fenster und Fenstertüren in Kunststoff (mit SIGAB).","m2",116]
["221.2","E 03.01","Fenster aus Kunststoff","Fenster","Hebeschiebe in Kunststoff (mit SIGAB).","m2",117]
["221.3","E 03.01","Fenster aus Stahl","Fenster","Fenster und Fenstertüren in Kunststoff/Metall (mit SIGAB).","m2",118]
["221.3","E 03.01","Fenster aus Stahl","Fenster","Hebeschiebe in Kunststoff/Metall (mit SIGAB).","m2",119]
["221.6","E 03.02","Aussentüren, Tore aus Metall","Aussentüre","Aluminium Haustüre.","m2",120]
["221.6","E 03.03","Aussentüren, Tore aus Metall","Aussentor","Kipptor aus Metall.","m2",121]
["221.6","E 03.03","Aussentüren, Tore aus Metall","Aussentor","Handsender zu Tor","Stk",122]
["221.7","E 02.04","Schaufensteranlagen","Systemfassade","Pfosten-/Riegel ohne Konstruktion max. über 1 Gechoss.","m2",123]
["222","F 01.01","Spenglerarbeiten","Dachabdichtung","Spenglerarbeiten, pro m2 Dachfläche","m2",124]
["223","F 02.03","Blitzschutz","Schutzanlage zu Dach","Blitzschutz.Pro m2 Dachfläche","m2",125]
["224.1","F 01.01","Plastische und elastische Dichtungsbeläge (Flachdächer)","Dachabdichtung unter Terrain","Vorarbeiten und Arbeiten.","m2",126]
["224.1","F 01.01","Plastische und elastische Dichtungsbeläge (Flachdächer)","Dachabdichtung unter Terrain","Bitumenvoranstrich.","m2",127]
["224.1","F 01.01","Plastische und elastische Dichtungsbeläge (Flachdächer)","Dachabdichtung unter Terrain","1cm Abdichtung bituminös 2-lagig.","m2",128]
["224.1","F 01.01","Plastische und elastische Dichtungsbeläge (Flachdächer)","Dachabdichtung unter Terrain","Drain WS20.","m2",129]
["224.1","F 01.01","Plastische und elastische Dichtungsbeläge (Flachdächer)","Dachabdichtung unter Terrain","Service pro Jahr. 5 x Kosten Dachabdichtung unter Terrain","Stk",130]
["224.1","F 01.01","Plastische und elastische Dichtungsbeläge (Flachdächer)","Dachabdichtung","Zuschläge, Prozentsatz auf Adichtungsarbeiten","%",131]
["224.1","F 01.02","Plastische und elastische Dichtungsbeläge (Flachdächer)","Flachdach begrünt","Dampfsperre.","m2",132]
["224.1","F 01.02","Plastische und elastische Dichtungsbeläge (Flachdächer)","Flachdach begrünt","Wärmedämmung.","m2",133]
["224.1","F 01.02","Plastische und elastische Dichtungsbeläge (Flachdächer)","Flachdach begrünt","Bitumendichtungsbahn 2-lagig.","m2",134]
["224.1","F 01.02","Plastische und elastische Dichtungsbeläge (Flachdächer)","Flachdach begrünt","Schutz-/Entwässerungsschicht.","m2",135]
["224.1","F 01.02","Plastische und elastische Dichtungsbeläge (Flachdächer)","Flachdach begrünt","Extensive Begrünung.","m2",136]
["224.1","F 01.02","Plastische und elastische Dichtungsbeläge (Flachdächer)","Flachdach Balkon ungedämmt","Abdichtung.","m2",137]
["224.1","F 01.02",{"$f":"IF(A130=0,\"\",LOOKUP(A130,BKP,Baukostenplan))","v":"Plastische und elastische Dichtungsbeläge (Flachdächer)"},"Flachdach Balkon ungedämmt","Zementüberzug.","m2",138]
["224.1","F 01.02","Plastische und elastische Dichtungsbeläge (Flachdächer)","Flachdach Balkon gedämmt","Zementplatten inkl. Kiesschicht.","m2",139]
["224.1","F 01.02","Plastische und elastische Dichtungsbeläge (Flachdächer)","Absturzsicherung Flachdach","Anschlagpunkte mit Grundplatten auf Beton. 5 Stück pro m","m",140]
["224.1","F 01.02","Plastische und elastische Dichtungsbeläge (Flachdächer)","Absturzsicherung Flachdach","Führungsseil.","m",141]
["224.1","F 01.02","Plastische und elastische Dichtungsbeläge (Flachdächer)","Absturzsicherung Flachdach","Eckverbindung.","Stk",142]
["224.1","F 01.02","Plastische und elastische Dichtungsbeläge (Flachdächer)","Absturzsicherung Flachdach","Sicherheitstest.","Stk",143]
["224.1","F 01.02","Plastische und elastische Dichtungsbeläge (Flachdächer)","Absturzsicherung Flachdach","Auffanggurt.","Stk",144]
["224.1","F 01.02","Plastische und elastische Dichtungsbeläge (Flachdächer)","Absturzsicherung Flachdach","Sicherungsseil.","Stk",145]
["224.2","F 02.02","Glaseinbauten in Steildächern","Element zu geneigtem Dach","Dachfenster z.B. Velux","Stk",146]
["224.3","F 02.01","Glaseinbauten in Flachdächern","Element zu Flachdach","RWA 1.2x1.2m ohne Sonnenschutz.","Stk",147]
["224.3","F 02.01","Glaseinbauten in Flachdächern","Element zu Flachdach","Dachausstieg 1.5x0.75m.","Stk",148]
["225.1","G 06.01","      .1 Fugendichtungen","Durchbruch, Schlitz zu Ausbau","Fugendichtungen.","GF",149]
["225.2","G 03.01","      .2 Spezielle Dämmungen","Unterkonstruktion zu Wandbekleidung","Wanddämmung z.B. Unitex gestrichen UG.","m2",150]
["225.2","G 04.01","      .2 Spezielle Dämmungen","Fertige Bekleidung Decke","Deckendämmung z.B. Unitex gestrichen UG.","m2",151]
["225.4","G 06.02","      .4 Brandschutzbekleidungen und dgl      .","Abschottung","Brandschutzbekleidungen.","GF",152]
["225.4","G 06.02","      .4 Brandschutzbekleidungen und dgl      .","Abschottung","Ausflocken von GIS-Elemente.","m3",153]
["226.2","E 02.01","      .2 Verputzte Aussenwärmedämmungen","Äussere Beschichtung","Kunststoffnetz-Armierung.","m2",154]
["226.2","E 02.01","      .2 Verputzte Aussenwärmedämmungen","Äussere Beschichtung","Grundputz.","m2",155]
["226.2","E 02.01","      .2 Verputzte Aussenwärmedämmungen","Äussere Beschichtung","Deckputz.","m2",156]
["226.2","E 02.01","      .2 Verputzte Aussenwärmedämmungen","Äussere Beschichtung","Zuschläge für Anschlüsse, Durchdringungen, etc., \nProzentsatz auf Aussenwärmedämmung","%",157]
["226.2","E 02.02","      .2 Verputzte Aussenwärmedämmungen","Aussendämmung ","Klebemörtel 0.5cm.","m2",158]
["226.2","E 02.02","      .2 Verputzte Aussenwärmedämmungen","Aussendämmung ","EPS-Dämmplatte 20.0cm.","m2",159]
["226.2","E 02.02","      .2 Verputzte Aussenwärmedämmungen","Aussendämmung ","Sturzelemente.","m",160]
["226.2","E 02.02","      .2 Verputzte Aussenwärmedämmungen","Aussendämmung ","Alu-Fensterbänke inkl. Winkel.","m",161]
["226.2","E 02.02","      .2 Verputzte Aussenwärmedämmungen","Aussendämmung ","Zuschläge für Leibungen. Prozentsatz auf Aussenwärmedämmung","%",162]
["226.2","E 02.02","      .2 Verputzte Aussenwärmedämmungen","Aussendämmung ","Zuschläge für Trawik in Leibungen (zur Handlaufbef.). Prozentsatz auf Aussenwärmedämmung","%",163]
["226.2","E 02.02","      .2 Verputzte Aussenwärmedämmungen","Aussendämmung ","Zuschläge für Anschlüsse, Durchdringungen, etc. Prozentsatz auf Aussenwärmedämmung","%",164]
["227.1","E 02.01","      .1 Äussere Malerarbeiten","Äussere Beschichtung","Anstrich auf Deckputz.","m2",165]
["227.1","E 02.05","      .1 Äussere Malerarbeiten","Fassadenbekleidung Untersicht","Anstrich auf Balkonuntersichten.","m2",166]
["228.2","E 03.04","      .2 Lamellenstoren","Sonnenschutz ","Verbundraffstoren mit Handkurbel.","m2",167]
["228.3","E 03.04","      .3 Sonnenstoren","Sonnenschutz ","Gelenkarmmarkisen mit Handkurbel.","m2",168]
["228.3","E 03.04","      .3 Sonnenstoren","Sonnenschutz ","Balkon / Loggia Vertikalmarkise Seilführung. Elektrisch.","m2",169]
["228.3","E 03.04","      .3 Sonnenstoren","Sonnenschutz ","Balkon / Loggia Vertikalmarkise Seilführung. Manuell","m2",170]
["231","D 01.01","Apparate Starkstrom","Anlage Erzeugung Starkstrom","EG-OG.","GF",171]
["231","D 01.01","Apparate Starkstrom","Anlage Erzeugung Starkstrom","UG/Keller.","GF",172]
["231","D 01.01","Apparate Starkstrom","Anlage Erzeugung Starkstrom","Photovoltaikanlagen","m2",173]
["233","D 01.05","Leuchten und Lampen","Verbraucher Starkstrom: Leuchten","EG-OG.","GF",174]
["233","D 01.05","Leuchten und Lampen","Verbraucher Starkstrom: Leuchten","UG/Keller.","GF",175]
["236","D 04.01","Schwachstrominstallationen","Brandmeldeanlage","Brandmeldeanlage EG-AG.","GF",176]
["236","D 04.01","Schwachstrominstallationen","Brandmeldeanlage","Brandmeldeanlage ESH.","GF",177]
["236","D 04.02","Schwachstrominstallationen",null,"Gaswarnanlage.","GF",178]
["237.1","D 02.01","      .1 Automationsebene","Managementebene","Elektro.","GF",179]
["237.1","D 02.01","      .1 Automationsebene","Managementebene","HLKS","GF",180]
["242","D 05.02","242 Wärmeerzeugung",null,"Wärmepumpe Erdsonde/Wasser & Bohrung ca. 200m.","EBF",181]
["243","D 05.04","243 Wärmeverteilung",null,"Wärmehauptverteilung.","EBF",182]
["244","D 04.06","244 Lüftungsanlagen",null,"Rauch- und Wärmeabzugsanlage ESH.","GF",183]
["244","D 07.01","244 Lüftungsanlagen","Aussenluftversorgung, Fortluftführung","Lüftungsanalgen UG/Keller.","GF",184]
["244","D 07.01","244 Lüftungsanlagen","Aussenluftversorgung, Fortluftführung","Lüftungsanalgen ESH.","GF",185]
["244","D 07.02","244 Lüftungsanlagen","Luftaufbereitung","Kontrollierte Wohnungslüftung.","Whg.",186]
["244","D 07.02","244 Lüftungsanlagen",null,"Einzelne Abluftanlagen.","Stk",187]
["244","D 07.03","244 Lüftungsanlagen",null,"Luftwärmespeicherung.","GF",188]
["246","D 06.02","246 Kälteanlagen",null,"Freecooling.","EBF",189]
["251","D 08.05","251 Allgemeine Sanitärapparate","Wasser: Armatur, Apparat","Lieferung Sanitärapparate 2.5-Zimmerwohnung.","Whg",190]
["251","D 08.05","251 Allgemeine Sanitärapparate","Wasser: Armatur, Apparat","Lieferung Sanitärapparate 3.5-Zimmerwohnung.","Whg",191]
["251","D 08.05","251 Allgemeine Sanitärapparate","Wasser: Armatur, Apparat","Lieferung Sanitärapparate 4.5-Zimmerwohnung.","Whg",192]
["251","D 08.05","251 Allgemeine Sanitärapparate","Wasser: Armatur, Apparat","Lieferung Sanitärapparate 5.5-Zimmerwohnung.","Whg",193]
["251","D 08.05","251 Allgemeine Sanitärapparate","Wasser: Armatur, Apparat","Montage Sanitärapparate, Prozentsatz auf Apparatelieferung","%",194]
["253","D 08.02","253 Sanitäre Ver- und Entsorgungsapparate",null,"Wasserbehandlung.","GF",195]
["254","D 08.04","254 Sanitärleitungen","Wasserverteilung    ","Leitungen über GF.","GF",196]
["255","D 08.04","255 Dämmungen Sanitärinstallationen","Wasserverteilung    ","Dämmungen Leitungen über GF.","GF",197]
["256","D 08.06","256 Sanitärinstallationselemente","Wasser: Installationselemente","Installationselemente.","Stk",198]
["257","D 04.05","257 Elektro- und Pneumatiktafeln","Löschgerät","Handfeuerlöscher.","Stk.",199]
["257","D 04.05","257 Elektro- und Pneumatiktafeln","Löschgerät","Feuerlöschposten.","Stk.",200]
["257","D 04.03","257 Elektro- und Pneumatiktafeln",null,"Sprinkleranlage ESH","GF",201]
["258","G 05.02",{"$f":"IF(A194=0,\"\",LOOKUP(A194,BKP,Baukostenplan))","v":"258 Kücheneinrichtungen"},null,"Küche für 2.5-Zimmerwohnung (5 Elemente).","Stk",202]
["258","G 05.02","258 Kücheneinrichtungen",null,"Küche für 3.5-Zimmerwohnung (6 Elemente).","Stk",203]
["258","G 05.02","258 Kücheneinrichtungen",null,"Küche für 4.5-Zimmerwohnung (7 Elemente).","Stk",204]
["258","G 05.02","258 Kücheneinrichtungen",null,"Küche für 5.5-Zimmerwohnung (7 Elemente).","Stk",205]
["261","D 12.01","261 Aufzüge","Personenaufzug ","Aufzüge (8 Pers.) mit xy Haltestellen (pro Haltestelle Hst).","Hst",206]
["261","D 12.02","261 Aufzüge","Lasten- und Serviceaufzug","Lasten- und Serviceaufzüge.","Hst",207]
["263","D 12.03","263 Fassadenreinigungsanlagen","Spezialaufzüge","Befahranlage für Fassade","Stk",208]
["271.0","G 03.02","      .0 Verputzarbeiten (innere)",null,"Grundputz.","m2",209]
["271.0","G 03.02","      .0 Verputzarbeiten (innere)",null,"Abrieb 1.5mm auf GP.","m2",210]
["271.0","G 03.02","      .0 Verputzarbeiten (innere)",null,"Abrieb 1.5mm auf GKP ohne GP.","m2",211]
["271.0","G 04.02","      .0 Verputzarbeiten (innere)","Fertige Bekleidung Decke","Weissputz Q3 inkl. Haftgrund.","m2",212]
["271.0","G 04.02","      .0 Verputzarbeiten (innere)","Fertige Bekleidung Decke","Weissputz Q4 inkl. Haftgrund.","m2",213]
["271.1","G 01.01","      .1 Spezielle Gipserarbeiten","Feststehende Trennwand","Gipsständer 10.5cm.","m2",214]
["271.1","G 01.01","      .1 Spezielle Gipserarbeiten","Feststehende Trennwand","Gipsständer 12.5cm.","m2",215]
["271.1","G 01.01","      .1 Spezielle Gipserarbeiten","Feststehende Trennwand","Gipsständer 15cm.","m2",216]
["271.1","G 01.03","      .1 Spezielle Gipserarbeiten","Schachfront","Beplankung (nur Platten 2x125mm) auf GIS.","m2",217]
["271.1","G 01.03","      .1 Spezielle Gipserarbeiten","Schachfront","Vorsatzschale.","m2",218]
["272.0","G 01.06","      .0 Innentüren aus Metall","Innentor","Brandschutztor.","m2",219]
["272.1","G 05.07","      .1 Metallbaufertigteile","Kleinbauteil, Schutzraumeinrichtung","Briefkasten.","Stk",220]
["272.1","G 05.07","      .1 Metallbaufertigteile","Kleinbauteil, Schutzraumeinrichtung","Kleinbauteile wie z.B. Abschlusswinkel und dgl.","GF",221]
["272.2","E 02.06","      .2 Allgemeine Metallbauarbeiten (Schlosserarbeiten)","Aussen liegende Absturzsicherung","Staketengeländer.","m",222]
["272.2","E 02.06","      .2 Allgemeine Metallbauarbeiten (Schlosserarbeiten)","Aussen liegende Absturzsicherung","Glasgeländer.","m",223]
["272.2","E 02.06","      .2 Allgemeine Metallbauarbeiten (Schlosserarbeiten)","Aussen liegende Absturzsicherung","Handlauf.","m",224]
["272.2","E 03.05","      .2 Allgemeine Metallbauarbeiten (Schlosserarbeiten)","Absturzsicherung","Staketengeländer duplexiert.","m",225]
["272.2","E 03.05","      .2 Allgemeine Metallbauarbeiten (Schlosserarbeiten)","Absturzsicherung","Staketengeländer feuerverzinkt.","m",226]
["272.2","E 03.05","      .2 Allgemeine Metallbauarbeiten (Schlosserarbeiten)","Absturzsicherung","Glasgeländer.","m",227]
["272.2","E 03.05","      .2 Allgemeine Metallbauarbeiten (Schlosserarbeiten)","Absturzsicherung","Handlauf.","m",228]
["272.2","G 05.05","      .2 Allgemeine Metallbauarbeiten (Schlosserarbeiten)","Absturz-, Ansprallschutzeinrichtung","Staketengeländer Treppenhaus.","m",229]
["272.2","G 05.06","      .2 Allgemeine Metallbauarbeiten (Schlosserarbeiten)","Sonderbauteil","Cheminées.","Stk",230]
["272.2","G 05.06","      .2 Allgemeine Metallbauarbeiten (Schlosserarbeiten)","Sonderbauteil","Pflanztröge.","Stk",231]
["272.4","G 05.07","      .4 Schutzraumteile","Schutzraumbauteile","Ausstattung wie Trockenklosett, Betten und dgl.","GF",232]
["272.4","G 05.07","      .4 Schutzraumteile","Kleinbauteil, Schutzraumeinrichtung","Schutzraumeinrichtung wie z.B. Trockenklosett, Bett und dgl.","GF",233]
["273.0","G 01.05","      .0 Innentüren aus Holz",null,"Wohnungseingangstüre EI30 KH-belegt 1x2.1m Stahlzarge.","m2",234]
["273.0","G 01.05","      .0 Innentüren aus Holz",null,"Zimmertüre KH-belegt 0.8x2.1m Stahlzarge.","m2",235]
["273.0","G 01.05","      .0 Innentüren aus Holz",null,"Zimmertüre KH-belegt 0.8x2.1m Blockfutter.","m2",236]
["273.0","G 01.05","      .0 Innentüren aus Holz",null,"Türe KH-belegt 0.8x2.1m Blockfutter EI30.","m2",237]
["273.0","G 01.05","      .0 Innentüren aus Holz",null,"Türe zu TRH KH-belegt 0.9x2.1m Stahlzargen EI30 inkl. Türschl.","m2",238]
["273.0","G 01.05","      .0 Innentüren aus Holz",null,"Türe UG KH-belegt 0.9x2.1m Stahlzargen EI30.","m2",239]
["273.1","G 05.01","      .1 Wandschränke, Gestelle und dgl      .","Garderobe","Einbauschränke 3-teilig (2x Hochschr. mit Kleiderst.).","Stk",240]
["273.3","G 05.03","      .3 Allgemeine Schreinerarbeiten","Innerer Fensterausbau","VS 57 Vorhangschiene 1 x.","m",241]
["273.3","G 05.03","      .3 Allgemeine Schreinerarbeiten","Innerer Fensterausbau","Fenstersims gestrichen.","m",242]
["274","G 01.04","274 Spezialverglasungen (innen)",null,"Innenfenster.","m2",243]
["275","D 03.04","275 Schliessanlagen",null,"Schliessanlage.","GF",244]
["276","G 05.04","276 Innere Abschlüsse","Innerer Abschluss","Vorhang.","m2",245]
["277.1","G 01.02","      .1 Schieb- und Faltwände","Bewegliche Trennwand","Elementschiebewände.","m2",246]
["277.2","G 01.01","      .2 Feststehende Elementwände","Feststehende Trennwand","WC-Trennwände inkl. Türen.","m2",247]
["277.2","G 01.01","      .2 Feststehende Elementwände","Feststehende Trennwand","Holzlattenverschlag Keller inkl. Türen.","m2",248]
["281.0","G 02.01","      .0 Unterlagsböden",null,"Trittschalldämmung 20mm.","m2",249]
["281.0","G 02.01","      .0 Unterlagsböden",null,"Wärmedämmung 40mm.","m2",250]
["281.0","G 02.01","      .0 Unterlagsböden",null,"PE-Folie.","m2",251]
["281.0","G 02.01","      .0 Unterlagsböden",null,"Zementunterlagsboden.","m2",252]
["281.0","G 02.01","      .0 Unterlagsböden",null,"Zuschläge für Anschüsse, etc. Prozentsatz auf UB Kosten","%",253]
["281.1","G 02.02","      .1 Fugenlose Bodenbeläge",null,"Hartbetonbelag ohne Anforderungen ungeschliffen.","m2",254]
["281.1","G 02.02","      .1 Fugenlose Bodenbeläge",null,"Hartbetonbelag mit 2K-Anstrich.","m2",255]
["281.1","G 02.02","      .1 Fugenlose Bodenbeläge",null,"Hartbetonbelag imprägniert.","m2",256]
["281.2","G 02.02","      .2 Bodenbeläge aus Kunststoffen, Textilien und dgl      .",null,"Epoxi-Kunstflessbelag.","m2",257]
["281.2","G 02.02","      .2 Bodenbeläge aus Kunststoffen, Textilien und dgl      .",null,"Linoleum.","m2",258]
["281.2","G 02.02","      .2 Bodenbeläge aus Kunststoffen, Textilien und dgl      .",null,"Parkdeckbelag Triflex.","m2",259]
["281.2","G 02.02","      .2 Bodenbeläge aus Kunststoffen, Textilien und dgl      .",null,"Kugelgarn z.B. Fabromont fertig verlegt.","m2",260]
["281.2","G 02.02","      .2 Bodenbeläge aus Kunststoffen, Textilien und dgl      .",null,"Schmutzschleusen z.B. Coral fertig verlegt.","m2",261]
["281.6","G 02.02","      .6 Bodenbeläge Plattenarbeiten",null,"Keramischer Plattenboden 30x60cm z.B. Colby-Classic Material.","m2",262]
["281.6","G 02.02","      .6 Bodenbeläge Plattenarbeiten",null,"Verlegearbeit zu Plattenboden.","m2",263]
["281.6","G 02.02","      .6 Bodenbeläge Plattenarbeiten",null,"Sockel aus Platten zu Plattenboden.","m1",264]
["281.6","G 02.02","      .6 Bodenbeläge Plattenarbeiten",null,"Vorarbeit wie Abdichtungen und dgl. inkl. Zuschläge zu Bodenplatten.","%",265]
["281.7","G 02.02",{"$f":"IF(A258=0,\"\",LOOKUP(A258,BKP,Baukostenplan))","v":"      .7 Bodenbeläge aus Holz"},null,"Parkettboden z.B. Scheucher Bilaflor Material.","m2",266]
["281.7","G 02.02","      .7 Bodenbeläge aus Holz",null,"Verlegearbeit inkl. Spachtelung und Zuschläge zu Parkettboden.","m2",267]
["281.7","G 02.02","      .7 Bodenbeläge aus Holz",null,"Sockel in Holz zu Parkettboden.","m1",268]
["281.8","G 02.02","      .8 Doppelböden",null,"Doppelböden inkl. vorgängiger Anstrich.","m2",269]
["281.9","G 02.02","      .9 Sockel",null,"Sockel Alu.","m1",270]
["282.4","G 03.02","      .4 Wandbeläge Plattenarbeiten",null,"Keramische Wandplatten 30x60cm z.B. Coby-Classic Material.","m2",271]
["282.4","G 03.02","      .4 Wandbeläge Plattenarbeiten",null,"Verlegearbeit zu Wandplatten.","m2",272]
["282.4","G 03.02","      .4 Wandbeläge Plattenarbeiten",null,"Vorarbeit wie Abdichtungen und dgl. inkl. Zuschläge zu Wandplatten.","%",273]
["285.1","G 01.05","      .1 Innere Malerarbeiten",null,"Anstrich auf Innentüren (beidseitig).","m2",274]
["285.1","G 02.02","      .1 Innere Malerarbeiten",null,"Anstrich auf Boden roh.","m2",275]
["285.1","G 02.02","      .1 Innere Malerarbeiten",null,"Bodenmarkierung ESH.","Ehp",276]
["285.1","G 03.02","      .1 Innere Malerarbeiten",null,"Anstrich auf Abrieb.","m2",277]
["285.1","G 03.02","      .1 Innere Malerarbeiten",null,"Anstrich auf Wand roh.","m2",278]
["285.1","G 04.02","      .1 Innere Malerarbeiten","Fertige Bekleidung Decke","Anstrich auf Weissputz.","m2",279]
["285.1","G 04.02","      .1 Innere Malerarbeiten","Fertige Bekleidung Decke","Anstrich auf Decke roh.","m2",280]
["285.1","G 05.07","      .1 Innere Malerarbeiten","Kleinbauteil, Schutzraumeinrichtung","Anstriche auf Metall- und Kleinteile.","GF",281]
["286","G 06.03","286 Bauaustrocknung",null,"Gebäudeaustrocknung.","GF",282]
["287","G 06.03","287 Baureinigung","Reinigung","Bau- und Endreinigung.","GF",283]
["287","G 06.03","287 Baureinigung",null,"Spülen der Schmutz- und Meteorleitungen.","gl",284]
["011",null,"Grundstückerwerb"]
[null,null,""]
[null,null,""]
[null,null,""]
[null,null,""]
[null,null,""]
[null,null,""]
[null,null,""]
[null,null,""]
[null,null,""]
[null,null,""]
[null,null,""]
[null,null,""]
[null,null,""]
[null,null,""]
[null,null,""]
[null,null,""]
[null,null,""]
[null,null,""]
[null,null,""]
[null,null,""]
[null,null,""]
[null,null,""]
[null,null,""]
[null,null,""]
[null,null,""]
[null,null,""]
[null,null,""]
[null,null,""]
[null,null,""]
[null,null,""]
[null,null,""]
[null,null,""]
[null,null,""]
[null,null,""]
[null,null,""]
[null,null,""]
[null,null,""]
[null,null,""]
[null,null,""]
[null,null,""]
[null,null,""]
[null,null,""]
[null,null,""]
[null,null,{"$f":"IF(A321=0,\"\",LOOKUP(A321,BKP,Baukostenplan))","v":""}]
[null,null,""]
[null,null,""]
[null,null,""]
[null,null,""]
[null,null,""]
[null,null,""]
[null,null,""]
[null,null,""]
[null,null,""]
[null,null,""]
[null,null,""]
[null,null,""]
[null,null,""]
[null,null,""]
[null,null,""]
[null,null,""]
[null,null,""]
[null,null,""]
[null,null,""]
[null,null,""]
[null,null,""]
[null,null,""]
[null,null,""]
[null,null,""]
[null,null,""]
[null,null,""]
[null,null,""]
[null,null,""]
[null,null,""]
[null,null,""]
[null,null,""]
[null,null,""]
[null,null,""]
[null,null,""]
[null,null,""]
[null,null,""]
[null,null,""]
[null,null,""]
[null,null,""]
[null,null,""]
[null,null,""]
[null,null,""]
[null,null,""]
[null,null,""]
[null,null,""]
[null,null,""]
[null,null,""]
[null,null,""]
[null,null,""]
[null,null,""]
[null,null,""]
[null,null,""]
[null,null,""]
[null,null,""]
[null,null,""]
[null,null,""]
[null,null,""]
[null,null,""]
[null,null,""]
[null,null,""]
[null,null,""]
[null,null,""]
[null,null,""]
[null,null,{"$f":"IF(A385=0,\"\",LOOKUP(A385,BKP,Baukostenplan))","v":""}]
[null,null,""]
[null,null,""]
[null,null,""]
[null,null,""]
[null,null,""]
[null,null,""]
[null,null,""]
[null,null,""]
[null,null,""]
[null,null,""]
[null,null,""]
[null,null,""]
[null,null,""]
[null,null,""]
[null,null,""]
[null,null,""]
[null,null,""]
[null,null,""]
[null,null,""]
[null,null,""]
[null,null,""]
[null,null,""]
[null,null,""]
[null,null,""]
[null,null,""]
[null,null,""]
[null,null,""]
[null,null,""]
[null,null,""]
[null,null,""]
[null,null,""]
[null,null,""]
[null,null,""]
[null,null,""]
[null,null,""]
[null,null,""]
[null,null,""]
[null,null,""]
[null,null,""]
[null,null,""]
[null,null,""]
[null,null,""]
[null,null,""]
[null,null,""]
[null,null,""]
[null,null,""]
[null,null,""]
[null,null,""]
[null,null,""]
[null,null,""]
[null,null,""]
[null,null,""]
[null,null,""]
[null,null,""]
[null,null,""]
[null,null,""]
[null,null,""]
[null,null,""]
[null,null,""]
[null,null,""]
[null,null,""]
[null,null,""]
[null,null,""]
[null,null,{"$f":"IF(A449=0,\"\",LOOKUP(A449,BKP,Baukostenplan))","v":""}]
[null,null,""]
[null,null,""]
[null,null,""]
[null,null,""]
[null,null,""]
[null,null,""]
[null,null,""]
[null,null,""]
[null,null,""]
[null,null,""]
[null,null,""]
[null,null,""]
[null,null,""]
[null,null,""]
[null,null,""]
[null,null,""]
[null,null,""]
[null,null,""]
[null,null,""]
[null,null,""]
[null,null,""]
[null,null,""]
[null,null,""]
[null,null,""]
[null,null,""]
[null,null,""]
[null,null,""]
[null,null,""]
[null,null,""]
[null,null,""]
[null,null,""]
[null,null,""]
[null,null,""]
[null,null,""]
[null,null,""]
[null,null,""]
[null,null,""]
[null,null,""]
[null,null,""]
[null,null,""]
[null,null,""]
[null,null,""]
[null,null,""]
[null,null,""]
[null,null,""]
[null,null,""]
[null,null,""]
[null,null,""]
[null,null,""]
[null,null,""]

{"sheet":"BKPListe","index":1,"n_rows":1384,"n_cols":3,"rows_kept":1384,"cut":false,"hidden":false,"merged":[]}
["0 Grundstück","BKP-Nr.","Bezeichnung"]
[null,"0","Grundstück"]
["0 Grundstück","00","Vorstudien"]
["0 Grundstück","000","Übergangsposition"]
["0 Grundstück","001","Studien zur Grundstückbeurteilung, Machbarkeitsstudie"]
["0 Grundstück","002","Vermessung, Vermarchung"]
["0 Grundstück","003","Geotechnische Gutachten"]
["0 Grundstück","004","Quartierplankosten, Richtplankosten"]
["0 Grundstück","005","Provisorische Baugespanne"]
["0 Grundstück","006","Umweltverträglichkeitsprüfung"]
[null,"007"]
[null,"008"]
["0 Grundstück","009","Übriges"]
["0 Grundstück"]
["0 Grundstück","01","Grundstück- bzw. Baurechterwerb"]
["0 Grundstück","010","Übergangsposition"]
["0 Grundstück","011","Grundstückerwerb"]
["0 Grundstück","012","Baurechterwerb"]
["0 Grundstück","013","Brandmauereinkauf"]
[null,"014"]
[null,"015"]
[null,"016"]
[null,"017"]
["0 Grundstück","018","Sanierung Altlasten"]
["0 Grundstück","019","Übriges"]
["0 Grundstück"]
["0 Grundstück","02","Nebenkosten zu Grundstück- resp. Baurechterwerb"]
["0 Grundstück","020","Übergangsposition"]
["0 Grundstück","021","Handänderungssteuer"]
["0 Grundstück","022","Notariatskosten"]
["0 Grundstück","023","Grundbuchgebühren"]
["0 Grundstück","024","Anwaltskosten, Gerichtskosten"]
["0 Grundstück","025","Vermittlungsprovisionen"]
[null,"026"]
[null,"027"]
[null,"028"]
["0 Grundstück","029","Übriges"]
["0 Grundstück"]
["0 Grundstück","03","Abfindungen, Servitute, Beiträge"]
["0 Grundstück","030","Übergangsposition"]
["0 Grundstück","031","Inkonvenienzentschädigungen"]
["0 Grundstück","032","Abfindungen an Mieter und Pächter"]
["0 Grundstück","033","Errichtung von Servituten"]
["0 Grundstück","034","Ablösung von Servituten"]
["0 Grundstück","035","Wirtschaftspatente"]
["0 Grundstück","036","Beiträge Melioration"]
["0 Grundstück","037","Beiträge Güterzusammenlegung"]
["0 Grundstück","038","Perimeterbeiträge"]
["0 Grundstück","039","Übriges"]
["0 Grundstück"]
["0 Grundstück","04","Finanzierung vor Baubeginn"]
["0 Grundstück","040","Übergangsposition"]
["0 Grundstück","041","Errichten von Hypotheken auf Grundstück"]
["0 Grundstück","042","Hypothekarzinsen"]
["0 Grundstück","043","Baurechtszinsen"]
["0 Grundstück","044","Bankzinsen"]
["0 Grundstück","045","Eigenkapitalzinsen"]
["0 Grundstück","046","Grundstücksteuern"]
[null,"047"]
["0 Grundstück","048","Versicherungen bis Baubeginn"]
["0 Grundstück","049","Übriges"]
["0 Grundstück"]
["0 Grundstück","05","Erschliessung durch Leitungen (ausserhalb Grundstück)"]
["0 Grundstück","050","Übergangsposition"]
["0 Grundstück","051","Erdarbeiten"]
["0 Grundstück","052","Kanalisationsleitungen"]
["0 Grundstück","053","Elektroleitungen"]
["0 Grundstück","054","Heizungs-, Lüftungs-, Klima-, Kälteleitungen"]
["0 Grundstück","055","Sanitärleitungen"]
["0 Grundstück","056","Nebenarbeiten"]
[null,"057"]
[null,"058"]
["0 Grundstück","059","Übriges"]
["0 Grundstück"]
["0 Grundstück","06","Erschliessung durch Verkehrsanlagen ausserhalb Grundstück"]
["0 Grundstück","060","Übergangsposition"]
["0 Grundstück","061","Strassen"]
["0 Grundstück","062","Bahn"]
["0 Grundstück","063","Schiff"]
[null,"064"]
[null,"065"]
[null,"066"]
[null,"067"]
[null,"068"]
["0 Grundstück","069","Übriges"]
["0 Grundstück"]
["0 Grundstück","07","Reserve"]
[null,"070"]
[null,"071"]
[null,"072"]
[null,"073"]
[null,"074"]
[null,"075"]
[null,"076"]
[null,"077"]
[null,"078"]
[null,"079"]
["0 Grundstück"]
["0 Grundstück","08","Reserve"]
[null,"080"]
[null,"081"]
[null,"082"]
[null,"083"]
[null,"084"]
[null,"085"]
[null,"086"]
[null,"087"]
[null,"088"]
[null,"089"]
["0 Grundstück"]
["0 Grundstück","09","Honorare"]
["0 Grundstück","090","Übergangsposition"]
["0 Grundstück","091","Architekt"]
["0 Grundstück","092","Bauingenieur"]
["0 Grundstück","093","Elektroingenieur"]
["0 Grundstück","094","HLK-Ingenieur"]
["0 Grundstück","095","Sanitäringenieur"]
["0 Grundstück","096","Spezialisten"]
["0 Grundstück","096.0","Geometer"]
["0 Grundstück","096.1","Geologe, Geotechniker"]
[null,"096.2"]
[null,"096.3"]
[null,"096.4"]
[null,"096.5"]
["0 Grundstück","096.6","Bauökonom"]
[null,"096.7"]
["0 Grundstück","096.8","Makler"]
[null,"096.9"]
[null,"097"]
[null,"098"]
["0 Grundstück","099","Übriges"]
["0 Grundstück"]
["0 Grundstück"]
["0 Grundstück"]
[]
["1 Vorbereitungsarbeiten"]
[null,"1","Vorbereitungsarbeiten"]
["1 Vorbereitungsarbeiten","10","Bestandesaufnahmen, Baugrunduntersuchungen"]
["1 Vorbereitungsarbeiten","100","Übergangsposition"]
["1 Vorbereitungsarbeiten","101","Bestandesaufnahmen"]
["1 Vorbereitungsarbeiten","102","Baugrunduntersuchungen"]
["1 Vorbereitungsarbeiten","103","Grundwassererhebungen"]
[null,"104"]
[null,"105"]
[null,"106"]
[null,"107"]
[null,"108"]
["1 Vorbereitungsarbeiten","109","Übriges"]
["1 Vorbereitungsarbeiten"]
["1 Vorbereitungsarbeiten","11","Räumungen, Terrainvorbereitungen"]
["1 Vorbereitungsarbeiten","110","Übergangsposition"]
["1 Vorbereitungsarbeiten","111","Rodungen"]
["1 Vorbereitungsarbeiten","112","Abbrüche"]
["1 Vorbereitungsarbeiten","113","Demontagen"]
["1 Vorbereitungsarbeiten","114","Erdbewegungen"]
["1 Vorbereitungsarbeiten","115","Bohr- und Schneidarbeiten"]
["1 Vorbereitungsarbeiten","115.0","Baustelleneinrichtung"]
["1 Vorbereitungsarbeiten","115.1","Erdarbeiten"]
[null,"115.2"]
[null,"115.3"]
[null,"115.4"]
[null,"115.5"]
[null,"115.6"]
[null,"115.7"]
[null,"115.8"]
[null,"115.9"]
[null,"116"]
[null,"117"]
[null,"118"]
["1 Vorbereitungsarbeiten","119","Übriges"]
["1 Vorbereitungsarbeiten"]
["1 Vorbereitungsarbeiten","12","Sicherungen, Provisorien"]
["1 Vorbereitungsarbeiten","120","Übergangsposition"]
["1 Vorbereitungsarbeiten","121","Sicherung vorhandener Anlagen"]
["1 Vorbereitungsarbeiten","122","Provisorien"]
["1 Vorbereitungsarbeiten","123","Unterfangungen"]
["1 Vorbereitungsarbeiten","123.0","Baustelleneinrichtung"]
["1 Vorbereitungsarbeiten","123.1","Gerüste"]
["1 Vorbereitungsarbeiten","123.2","Spezielle Unterfangungsarbeiten"]
["1 Vorbereitungsarbeiten","123.3","Erdarbeiten"]
["1 Vorbereitungsarbeiten","123.4","Kanalisationen"]
["1 Vorbereitungsarbeiten","123.5","Beton- und Stahlbetonarbeiten"]
["1 Vorbereitungsarbeiten","123.6","Maurerarbeiten"]
[null,"123.7"]
[null,"123.8"]
[null,"123.9"]
["1 Vorbereitungsarbeiten","124","Instandsetzungsarbeiten"]
[null,"125"]
[null,"126"]
[null,"127"]
[null,"128"]
["1 Vorbereitungsarbeiten","129","Übriges"]
["1 Vorbereitungsarbeiten"]
["1 Vorbereitungsarbeiten","13","Gemeinsame Baustelleneinrichtung"]
["1 Vorbereitungsarbeiten","130","Übergangsposition"]
["1 Vorbereitungsarbeiten","131","Abschrankungen"]
["1 Vorbereitungsarbeiten","132","Zufahrten, Plätze"]
["1 Vorbereitungsarbeiten","133","Büro Bauleitung"]
["1 Vorbereitungsarbeiten","134","Unterkünfte, Verpflegungseinrichtungen"]
["1 Vorbereitungsarbeiten","135","Provisorische Installationen"]
["1 Vorbereitungsarbeiten","135.0","Kanalisationen"]
["1 Vorbereitungsarbeiten","135.1","Elektro"]
["1 Vorbereitungsarbeiten","135.2","Heizung, Lüftung, Klima, Kälte"]
["1 Vorbereitungsarbeiten","135.3","Wasser"]
["1 Vorbereitungsarbeiten","135.4","Übermittlung"]
[null,"135.5"]
[null,"135.6"]
[null,"135.7"]
[null,"135.8"]
[null,"135.9"]
["1 Vorbereitungsarbeiten","136","Kosten für Energie, Wasser und dgl      ."]
["1 Vorbereitungsarbeiten","137","Provisorische Abschlüsse und Abdeckungen"]
["1 Vorbereitungsarbeiten","138","Bauabfälle Sortierung"]
["1 Vorbereitungsarbeiten","139","Übriges"]
["1 Vorbereitungsarbeiten"]
["1 Vorbereitungsarbeiten","14","Anpassungen an bestehende Bauten"]
["1 Vorbereitungsarbeiten","140","Übergangsposition"]
["1 Vorbereitungsarbeiten","141","Terraingestaltung, Rohbau 1"]
["1 Vorbereitungsarbeiten","141.0","Erdarbeiten"]
["1 Vorbereitungsarbeiten","141.1","Baumeisterarbeiten"]
["1 Vorbereitungsarbeiten","141.2","Montagebau in Beton und vorfabriziertem Mauerwerk"]
["1 Vorbereitungsarbeiten","141.3","Montagebau in Stahl"]
["1 Vorbereitungsarbeiten","141.4","Montagebau in Holz"]
["1 Vorbereitungsarbeiten","141.5","Montagebau als Leichtkonstruktion"]
["1 Vorbereitungsarbeiten","141.6","Natur- und Kunststeinarbeiten"]
["1 Vorbereitungsarbeiten","141.7","Schutzraumabschlüsse"]
[null,"141.8"]
[null,"141.9"]
["1 Vorbereitungsarbeiten","142","Rohbau 2"]
["1 Vorbereitungsarbeiten","142.1","Fenster, Aussentüren, Tore"]
["1 Vorbereitungsarbeiten","142.2","Spenglerarbeiten"]
["1 Vorbereitungsarbeiten","142.3","Blitzschutz"]
["1 Vorbereitungsarbeiten","142.4","Bedachungsarbeiten"]
["1 Vorbereitungsarbeiten","142.5","Spezielle Dichtungen und Dämmungen"]
["1 Vorbereitungsarbeiten","142.6","Fassadenputze"]
["1 Vorbereitungsarbeiten","142.7","Äussere Oberflächenbehandlungen"]
["1 Vorbereitungsarbeiten","142.8","Äussere Abschlüsse, Sonnenschutz"]
[null,"142.9"]
["1 Vorbereitungsarbeiten","143","Elektroanlagen"]
["1 Vorbereitungsarbeiten","144","Heizungs-, Lüftungs-, Klima- und Kälteanlagen"]
["1 Vorbereitungsarbeiten","145","Sanitäranlagen"]
["1 Vorbereitungsarbeiten","146","Transportanlagen"]
["1 Vorbereitungsarbeiten","147","Ausbau 1"]
["1 Vorbereitungsarbeiten","147.1","Gipserarbeiten"]
["1 Vorbereitungsarbeiten","147.2","Metallbauarbeiten"]
["1 Vorbereitungsarbeiten","147.3","Schreinerarbeiten"]
["1 Vorbereitungsarbeiten","147.4","Spezialverglasungen (innere)"]
["1 Vorbereitungsarbeiten","147.5","Schliessanlagen"]
["1 Vorbereitungsarbeiten","147.6","Innere Abschlüsse"]
["1 Vorbereitungsarbeiten","147.7","Elementwände"]
[null,"147.8"]
[null,"147.9"]
["1 Vorbereitungsarbeiten","148","Ausbau 2"]
["1 Vorbereitungsarbeiten","148.1","Bodenbeläge"]
["1 Vorbereitungsarbeiten","148.2","Wandbeläge, Wandbekleidungen"]
["1 Vorbereitungsarbeiten","148.3","Deckenbekleidungen"]
["1 Vorbereitungsarbeiten","148.4","Hafnerarbeiten"]
["1 Vorbereitungsarbeiten","148.5","Innere Oberflächenbehandlungen"]
["1 Vorbereitungsarbeiten","148.6","Bauaustrocknung"]
["1 Vorbereitungsarbeiten","148.7","Baureinigung"]
["1 Vorbereitungsarbeiten","148.8","Gärtnerarbeiten"]
[null,"148.9"]
["1 Vorbereitungsarbeiten","149","Übriges"]
["1 Vorbereitungsarbeiten"]
["1 Vorbereitungsarbeiten","15","Anpassungen an bestehende Erschliessungsleitungen"]
["1 Vorbereitungsarbeiten","150","Übergangsposition"]
["1 Vorbereitungsarbeiten","151","Erdarbeiten"]
["1 Vorbereitungsarbeiten","152","Kanalisationsleitungen"]
["1 Vorbereitungsarbeiten","153","Elektroleitungen"]
["1 Vorbereitungsarbeiten","154","Heizungs-, Lüftungs-, Klima-, Kälteleitungen"]
["1 Vorbereitungsarbeiten","155","Sanitärleitungen"]
["1 Vorbereitungsarbeiten","156","Nebenarbeiten"]
[null,"157"]
[null,"158"]
["1 Vorbereitungsarbeiten","159","Übriges"]
["1 Vorbereitungsarbeiten"]
["1 Vorbereitungsarbeiten","16","Anpassungen an bestehende Verkehrsanlagen"]
["1 Vorbereitungsarbeiten","160","Übergangsposition"]
["1 Vorbereitungsarbeiten","161","Strassen"]
["1 Vorbereitungsarbeiten","162","Bahn"]
["1 Vorbereitungsarbeiten","163","Schiff"]
[null,"164"]
[null,"165"]
[null,"166"]
[null,"167"]
[null,"168"]
["1 Vorbereitungsarbeiten","169","Übriges"]
["1 Vorbereitungsarbeiten"]
["1 Vorbereitungsarbeiten","17","Spezielle Fundationen, Baugrubensicherung, Grundwasserabdichtung"]
["1 Vorbereitungsarbeiten","170","Übergangsposition"]
["1 Vorbereitungsarbeiten","171","Pfähle"]
["1 Vorbereitungsarbeiten","172","Baugrubenabschlüsse"]
["1 Vorbereitungsarbeiten","173","Aussteifungen"]
["1 Vorbereitungsarbeiten","174","Anker"]
["1 Vorbereitungsarbeiten","175","Grundwasserabdichtungen"]
["1 Vorbereitungsarbeiten","176","Wasserhaltung"]
["1 Vorbereitungsarbeiten","176.0","Offene Wasserhaltung"]
["1 Vorbereitungsarbeiten","176.1","Grundwasserabsenkungen"]
[null,"176.2"]
[null,"176.3"]
[null,"176.4"]
[null,"176.5"]
[null,"176.6"]
[null,"176.7"]
[null,"176.8"]
[null,"176.9"]
["1 Vorbereitungsarbeiten","177","Baugrundverbesserungen"]
["1 Vorbereitungsarbeiten","178","Nebenarbeiten"]
["1 Vorbereitungsarbeiten","179","Übriges"]
["1 Vorbereitungsarbeiten"]
["1 Vorbereitungsarbeiten","18","Reserve"]
[null,"180"]
[null,"181"]
[null,"182"]
[null,"183"]
[null,"184"]
[null,"185"]
[null,"186"]
[null,"187"]
[null,"188"]
[null,"189"]
["1 Vorbereitungsarbeiten"]
["1 Vorbereitungsarbeiten","19","Honorare"]
["1 Vorbereitungsarbeiten","190","Übergangsposition"]
["1 Vorbereitungsarbeiten","191","Architekt"]
["1 Vorbereitungsarbeiten","192","Bauingenieur"]
["1 Vorbereitungsarbeiten","193","Elektroingenieur"]
["1 Vorbereitungsarbeiten","194","HLK-Ingenieur"]
["1 Vorbereitungsarbeiten","195","Sanitäringenieur"]
["1 Vorbereitungsarbeiten","196","Spezialisten"]
["1 Vorbereitungsarbeiten","196.0","Geometer"]
["1 Vorbereitungsarbeiten","196.1","Geologe, Geotechniker"]
[null,"196.2"]
[null,"196.3"]
[null,"196.4"]
[null,"196.5"]
["1 Vorbereitungsarbeiten","196.6","Bauökonom"]
[null,"196.7"]
[null,"196.8"]
[null,"196.9"]
[null,"197"]
[null,"198"]
["1 Vorbereitungsarbeiten","199","Übriges"]
["1 Vorbereitungsarbeiten"]
["1 Vorbereitungsarbeiten"]
[]
["2 Gebäude"]
[null,"2","Gebäude"]
["2 Gebäude","20","Baugrube"]
["2 Gebäude","200","Übergangsposition"]
["2 Gebäude","201","Baugrubenaushub"]
["2 Gebäude","201.0","Baustelleneinrichtung"]
["2 Gebäude","201.1","Erdarbeiten"]
[null,"201.2"]
[null,"201.3"]
[null,"201.4"]
[null,"201.5"]
[null,"201.6"]
[null,"201.7"]
[null,"201.8"]
[null,"201.9"]
[null,"202"]
[null,"203"]
[null,"204"]
[null,"205"]
[null,"206"]
[null,"207"]
[null,"208"]
["2 Gebäude","209","Übriges"]
["2 Gebäude"]
["2 Gebäude","21","Rohbau 1"]
["2 Gebäude","210","Übergangsposition"]
["2 Gebäude","211","Baumeisterarbeiten"]
["2 Gebäude","211.0","Baustelleneinrichtung"]
["2 Gebäude","211.1","Gerüste"]
[null,"211.2"]
["2 Gebäude","211.3","Baumeisteraushub"]
["2 Gebäude","211.4","Kanalisationen im Gebäude"]
["2 Gebäude","211.5","Beton- und Stahlbetonarbeiten"]
["2 Gebäude","211.6","Maurerarbeiten"]
["2 Gebäude","211.7","Instandsetzungsarbeiten"]
[null,"211.8"]
[null,"211.9"]
["2 Gebäude","212","Montagebau in Beton und vorfabriziertem Mauerwerk"]
["2 Gebäude","212.0","Baustelleneinrichtung"]
["2 Gebäude","212.1","Gerüste"]
["2 Gebäude","212.2","Elemente aus Beton"]
["2 Gebäude","212.3","Elemente in vorfabriziertem Mauerwerk"]
["2 Gebäude","212.4","Elemente in Porenbeton"]
[null,"212.5"]
[null,"212.6"]
[null,"212.7"]
[null,"212.8"]
[null,"212.9"]
["2 Gebäude","213","Montagebau in Stahl"]
["2 Gebäude","213.0","Baustelleneinrichtung"]
["2 Gebäude","213.1","Gerüste"]
["2 Gebäude","213.2","Stahlkonstruktion"]
[null,"213.3"]
[null,"213.4"]
["2 Gebäude","213.5","Äussere Bekleidungen"]
[null,"213.6"]
[null,"213.7"]
[null,"213.8"]
[null,"213.9"]
["2 Gebäude","214","Montagebau in Holz"]
["2 Gebäude","214.0","Baustelleneinrichtung"]
["2 Gebäude","214.1","Traggerippe (Zimmermanns- konstruktionen)"]
["2 Gebäude","214.2","Traggerippe (Ingenieurholzbau)"]
["2 Gebäude","214.3","Holztafelbau"]
["2 Gebäude","214.4","Äussere Bekleidungen, Gesimse, Treppen"]
["2 Gebäude","214.5","Gerüste"]
["2 Gebäude","214.6","Steildächer, Unterkonstruktion"]
[null,"214.7"]
[null,"214.8"]
[null,"214.9"]
["2 Gebäude","215","Montagebau als Leichtkonstruktionen"]
["2 Gebäude","215.0","Baustelleneinrichtung"]
["2 Gebäude","215.1","Gerüste"]
["2 Gebäude","215.2","Fassadenbau"]
[null,"215.3"]
["2 Gebäude","215.4","Traggerippe"]
["2 Gebäude","215.5","Äussere Bekleidungen"]
[null,"215.6"]
[null,"215.7"]
[null,"215.8"]
[null,"215.9"]
["2 Gebäude","216","Natur- und Kunststeinarbeiten"]
["2 Gebäude","216.0","Natursteinarbeiten"]
["2 Gebäude","216.1","Kunststeinarbeiten"]
[null,"216.2"]
[null,"216.3"]
[null,"216.4"]
[null,"216.5"]
[null,"216.6"]
[null,"216.7"]
[null,"216.8"]
[null,"216.9"]
["2 Gebäude","217","Schutzraumabschlüsse"]
[null,"218"]
["2 Gebäude","219","Übriges"]
["2 Gebäude"]
["2 Gebäude","22","Rohbau 2"]
["2 Gebäude","220","Übergangsposition"]
["2 Gebäude","221","Fenster, Aussentüren, Tore"]
["2 Gebäude","221.0","Fenster aus Holz"]
["2 Gebäude","221.1","Fenster aus Holz/Metall"]
["2 Gebäude","221.2","Fenster aus Kunststoff"]
["2 Gebäude","221.3","Fenster aus Stahl"]
["2 Gebäude","221.4","Fenster aus Aluminium"]
["2 Gebäude","221.5","Aussentüren, Tore aus Holz"]
["2 Gebäude","221.6","Aussentüren, Tore aus Metall"]
["2 Gebäude","221.7","Schaufensteranlagen"]
["2 Gebäude","221.8","Spezielle lichtdurchlässige Bauteile (äussere)"]
["2 Gebäude","221.9","Metallbaufertigteile"]
["2 Gebäude","222","Spenglerarbeiten"]
["2 Gebäude","223","Blitzschutz"]
["2 Gebäude","224","Bedachungsarbeiten"]
["2 Gebäude","224.0","Deckungen (Steildächer)"]
["2 Gebäude","224.1","Plastische und elastische Dichtungsbeläge (Flachdächer)"]
["2 Gebäude","224.2","Glaseinbauten in Steildächern"]
["2 Gebäude","224.3","Glaseinbauten in Flachdächern"]
[null,"224.4"]
[null,"224.5"]
[null,"224.6"]
[null,"224.7"]
[null,"224.8"]
[null,"224.9"]
["2 Gebäude","225","Spezielle Dichtungen und Dämmungen"]
["2 Gebäude","225.0","      .0 Gerüste"]
["2 Gebäude","225.1","      .1 Fugendichtungen"]
["2 Gebäude","225.2","      .2 Spezielle Dämmungen"]
["2 Gebäude","225.3","      .3 Spezielle Feuchtigkeitsabdichtungen"]
["2 Gebäude","225.4","      .4 Brandschutzbekleidungen und dgl      ."]
[null,"225.5"]
[null,"225.6"]
[null,"225.7"]
[null,"225.8"]
[null,"225.9"]
["2 Gebäude","226","Fassadenputze"]
["2 Gebäude","226.0","      .0 Gerüste"]
["2 Gebäude","226.1","      .1 Verputzarbeiten (äussere)"]
["2 Gebäude","226.2","      .2 Verputzte Aussenwärmedämmungen"]
[null,"226.3","      .3 Wärmedämmung im Erdreich"]
[null,"226.4"]
[null,"226.5"]
[null,"226.6"]
[null,"226.7"]
[null,"226.8"]
[null,"226.9"]
["2 Gebäude","227","Äussere Oberflächenbehandlungen"]
["2 Gebäude","227.0","      .0 Gerüste"]
["2 Gebäude","227.1","      .1 Äussere Malerarbeiten"]
["2 Gebäude","227.2","      .2 Holzschutzarbeiten (äussere)"]
["2 Gebäude","227.3","      .3 Holz-Beizarbeiten und -Naturbehandlungen (äussere)"]
[null,"227.4"]
[null,"227.5"]
[null,"227.6"]
[null,"227.7"]
[null,"227.8"]
[null,"227.9"]
["2 Gebäude","228","Äussere Abschlüsse, Sonnenschutz"]
["2 Gebäude","228.0","      .0 Fenster- und Fenstertürläden"]
["2 Gebäude","228.1","      .1 Rollläden"]
["2 Gebäude","228.2","      .2 Lamellenstoren"]
["2 Gebäude","228.3","      .3 Sonnenstoren"]
["2 Gebäude","228.4","      .4 Blendschutzanlagen"]
[null,"228.5"]
["2 Gebäude","228.6","      .6 Bewegliche Gitterabschlüsse (äussere)"]
[null,"228.7"]
[null,"228.8"]
[null,"228.9"]
["2 Gebäude","229","Übriges"]
["2 Gebäude"]
["2 Gebäude","23","Elektroanlagen"]
["2 Gebäude","230","Übergangsposition"]
["2 Gebäude","231","Apparate Starkstrom"]
["2 Gebäude","232","Starkstrominstallationen"]
["2 Gebäude","233","Leuchten und Lampen"]
["2 Gebäude","234","Energieverbraucher"]
["2 Gebäude","235","Apparate Schwachstrom"]
["2 Gebäude","236","Schwachstrominstallationen"]
["2 Gebäude","237","Gebäudeautomation"]
["2 Gebäude","237.0","      .0 Managementebene"]
["2 Gebäude","237.1","      .1 Automationsebene"]
[null,"237.2"]
["2 Gebäude","237.3","      .3 Feldebene"]
[null,"237.4"]
[null,"237.5"]
[null,"237.6"]
["2 Gebäude","237.7","      .7 Schaltgerätekombination SGK"]
[null,"237.8"]
[null,"237.9"]
["2 Gebäude","238","238 Bauprovisorien"]
["2 Gebäude","239","239 Übriges"]
["2 Gebäude"]
["2 Gebäude","24","24 Heizungs-, Lüftungs-, Klimaanlagen"]
["2 Gebäude","240","240 Übergangsposition"]
["2 Gebäude","241","241 Zulieferung Energieträger, Lagerung"]
["2 Gebäude","242","242 Wärmeerzeugung"]
["2 Gebäude","243","243 Wärmeverteilung"]
["2 Gebäude","244","244 Lüftungsanlagen"]
["2 Gebäude","245","245 Klimaanlagen"]
["2 Gebäude","246","246 Kälteanlagen"]
["2 Gebäude","247","247 Spezialanlagen"]
["2 Gebäude","247.0","      .0 Wasseraufbereitung"]
["2 Gebäude","247.1","      .1 Druckluft für Regulierungen"]
["2 Gebäude","247.2","      .2 Spezialfilter"]
["2 Gebäude","247.3","      .2 Energierückgewinnung"]
["2 Gebäude","247.4","      .4 Schutzraumbelüftungen"]
["2 Gebäude","247.5","      .5 Spezielle Kaminanlagen"]
["2 Gebäude","247.6","      .6 Spezielle Energieerzeugung"]
[null,"247.7"]
[null,"247.8"]
[null,"247.9"]
["2 Gebäude","248","248 Dämmungen HLK-Installationen"]
["2 Gebäude","249","249 Übriges"]
["2 Gebäude"]
["2 Gebäude","25","25 Sanitäranlagen"]
["2 Gebäude","250","250 Übergangsposition"]
["2 Gebäude","251","251 Allgemeine Sanitärapparate"]
["2 Gebäude","251.0","      .0 Lieferung"]
["2 Gebäude","251.1","      .1 Montage"]
[null,"251.2"]
[null,"251.3"]
[null,"251.4"]
[null,"251.5"]
[null,"251.6"]
[null,"251.7"]
[null,"251.8"]
[null,"251.9"]
["2 Gebäude","252","252 Spezielle Sanitärapparate"]
["2 Gebäude","253","253 Sanitäre Ver- und Entsorgungsapparate"]
["2 Gebäude","254","254 Sanitärleitungen"]
["2 Gebäude","255","255 Dämmungen Sanitärinstallationen"]
["2 Gebäude","256","256 Sanitärinstallationselemente"]
["2 Gebäude","257","257 Elektro- und Pneumatiktafeln"]
["2 Gebäude","258","258 Kücheneinrichtungen"]
["2 Gebäude","259","259 Übriges"]
["2 Gebäude"]
["2 Gebäude","26","26 Transportanlagen"]
["2 Gebäude","260","260 Übergangsposition"]
["2 Gebäude","261","261 Aufzüge"]
["2 Gebäude","262","262 Fahrtreppen, Fahrsteige"]
["2 Gebäude","263","263 Fassadenreinigungsanlagen"]
["2 Gebäude","264","264 Sonstige Förderanlagen"]
["2 Gebäude","265","265 Hebeeinrichtungen"]
["2 Gebäude","266","266 Parkieranlagen"]
[null,"267"]
[null,"268"]
["2 Gebäude","269","269 Übriges"]
["2 Gebäude"]
["2 Gebäude","27","27 Ausbau 1"]
["2 Gebäude","270","270 Übergangsposition"]
["2 Gebäude","271","271 Gipserarbeiten"]
["2 Gebäude","271.0","      .0 Verputzarbeiten (innere)"]
["2 Gebäude","271.1","      .1 Spezielle Gipserarbeiten"]
["2 Gebäude","271.2","      .2 Gerüste"]
[null,"271.3"]
[null,"271.4"]
[null,"271.5"]
[null,"271.6"]
[null,"271.7"]
[null,"271.8"]
[null,"271.9"]
["2 Gebäude","272","272 Metallbauarbeiten"]
["2 Gebäude","272.0","      .0 Innentüren aus Metall"]
["2 Gebäude","272.1","      .1 Metallbaufertigteile"]
["2 Gebäude","272.2","      .2 Allgemeine Metallbauarbeiten (Schlosserarbeiten)"]
["2 Gebäude","272.3","      .3 Innere Verglasungen aus Metall"]
["2 Gebäude","272.4","      .4 Schutzraumteile"]
[null,"272.5"]
[null,"272.6"]
[null,"272.7"]
[null,"272.8"]
[null,"272.9"]
["2 Gebäude","273","273 Schreinerarbeiten"]
["2 Gebäude","273.0","      .0 Innentüren aus Holz"]
["2 Gebäude","273.1","      .1 Wandschränke, Gestelle und dgl      ."]
["2 Gebäude","273.2","      .2 Innere Verglasungen aus Holz"]
["2 Gebäude","273.3","      .3 Allgemeine Schreinerarbeiten"]
[null,"273.4"]
[null,"273.5"]
[null,"273.6"]
[null,"273.7"]
[null,"273.8"]
[null,"273.9"]
["2 Gebäude","274","274 Spezialverglasungen (innen)"]
["2 Gebäude","275","275 Schliessanlagen"]
["2 Gebäude","276","276 Innere Abschlüsse"]
["2 Gebäude","276.0","      .0 Verdunkelungseinrichtungen"]
["2 Gebäude","276.1","      .1 Bewegliche Gitterabschlüsse (innere)"]
[null,"276.2"]
[null,"276.3"]
[null,"276.4"]
[null,"276.5"]
[null,"276.6"]
[null,"276.7"]
[null,"276.8"]
[null,"276.9"]
["2 Gebäude","277","277 Elementwände"]
["2 Gebäude","277.0","      .0 Versetzbare Elementwände"]
["2 Gebäude","277.1","      .1 Schieb- und Faltwände"]
["2 Gebäude","277.2","      .2 Feststehende Elementwände"]
[null,"277.3"]
[null,"277.4"]
[null,"277.5"]
[null,"277.6"]
[null,"277.7"]
[null,"277.8"]
[null,"277.9"]
["2 Gebäude","279","279 Übriges"]
["2 Gebäude"]
["2 Gebäude","28","28 Ausbau 2"]
["2 Gebäude","280","280 Übergangsposition"]
["2 Gebäude","281","281 Bodenbeläge"]
["2 Gebäude","281.0","      .0 Unterlagsböden"]
["2 Gebäude","281.1","      .1 Fugenlose Bodenbeläge"]
["2 Gebäude","281.2","      .2 Bodenbeläge aus Kunststoffen, Textilien und dgl      ."]
[null,"281.3"]
["2 Gebäude","281.4","      .4 Bodenbeläge aus Naturstein"]
["2 Gebäude","281.5","      .5 Bodenbeläge aus Kunststein"]
["2 Gebäude","281.6","      .6 Bodenbeläge Plattenarbeiten"]
["2 Gebäude","281.7","      .7 Bodenbeläge aus Holz"]
["2 Gebäude","281.8","      .8 Doppelböden"]
["2 Gebäude","281.9","      .9 Sockel"]
["2 Gebäude","282","282 Wandbeläge, Wandbekleidungen"]
["2 Gebäude","282.0","      .0 Fugenlose Wandbeläge"]
["2 Gebäude","282.1","      .1 Tapezierarbeiten"]
["2 Gebäude","282.2","      .2 Wandbekleidungen aus Naturstein"]
["2 Gebäude","282.3","      .3 Wandbekleidungen aus Kunststein"]
["2 Gebäude","282.4","      .4 Wandbeläge Plattenarbeiten"]
["2 Gebäude","282.5","      .5 Wandbekleidungen aus Holz und Holzwerkstoffen"]
["2 Gebäude","282.6","      .6 Wandbekleidungen aus Kunststoffen, Textilien und dgl      ."]
["2 Gebäude","282.7","      .7 Gerüste"]
[null,"282.8"]
[null,"282.9"]
["2 Gebäude","283","283 Deckenbekleidungen"]
["2 Gebäude","283.0","      .0 Gerüste"]
["2 Gebäude","283.1","      .1 Deckenbekleidungen aus Metall: Platten"]
["2 Gebäude","283.2","      .2 Deckenbekleidungen aus Gips"]
["2 Gebäude","283.3","      .3 Deckenbekleidungen aus Mineralfasern"]
["2 Gebäude","283.4","      .4 Deckenbekleidungen aus Holz und Holzwerkstoffen"]
["2 Gebäude","283.5","      .5 Deckenbekleidungen aus Kunststoffen, Textilien und dgl      ."]
["2 Gebäude","283.6","      .6 Deckenbekleidungen aus Metall: Paneele und Lamellen"]
["2 Gebäude","283.7","      .7 Deckenbekleidungen aus Metall: Raster"]
[null,"283.8"]
[null,"283.9"]
["2 Gebäude","284","284 Hafnerarbeiten"]
["2 Gebäude","285","285 Innere Oberflächenbehandlungen"]
["2 Gebäude","285.0","      .0 Gerüste"]
["2 Gebäude","285.1","      .1 Innere Malerarbeiten"]
["2 Gebäude","285.2","      .2 Holzschutzarbeiten (innere)"]
["2 Gebäude","285.3","      .3 Holz-Beizarbeiten und -Naturbehandlungen (innere)"]
[null,"285.4"]
[null,"285.5"]
[null,"285.6"]
[null,"285.7"]
[null,"285.8"]
[null,"285.9"]
["2 Gebäude","286","286 Bauaustrocknung"]
["2 Gebäude","287","287 Baureinigung"]
["2 Gebäude","288","288 Gärtnerarbeiten (Gebäude)"]
["2 Gebäude","289","289 Übriges"]
["2 Gebäude"]
["2 Gebäude","29","29 Honorare"]
["2 Gebäude","290","290 Übergangsposition"]
["2 Gebäude","291","291 Architekt"]
["2 Gebäude","292","292 Bauingenieur"]
["2 Gebäude","293","293 Elektroingenieur"]
["2 Gebäude","294","294 HLK-Ingenieur"]
["2 Gebäude","295","295 Sanitäringenieur"]
["2 Gebäude","296","296 Spezialisten"]
["2 Gebäude","296.0","      .0 Geometer"]
[null,"296.1"]
["2 Gebäude","296.2","      .2 Innenarchitekt"]
["2 Gebäude","296.3","      .3 Bauphysiker"]
["2 Gebäude","296.4","      .4 Akustiker"]
["2 Gebäude","296.5","      .5 Landschaftsarchitekt"]
["2 Gebäude","296.6","      .6 Bauökonom"]
["2 Gebäude","296.7","      .7 Prüfingenieur"]
[null,"296.8"]
[null,"296.9"]
[null,"297"]
["2 Gebäude","298","298 Gebäudeautomationsingenieur"]
["2 Gebäude","299","299 Übriges"]
["2 Gebäude"]
[]
["3 Betriebseinrichtungen"]
[null,"3","Betriebseinrichtungen"]
["3 Betriebseinrichtungen","30","30 Baugrube"]
["3 Betriebseinrichtungen","300","300 Übergangsposition"]
["3 Betriebseinrichtungen","301","301 Baugrubenaushub"]
[null,"302"]
[null,"303"]
[null,"304"]
[null,"305"]
[null,"306"]
[null,"307"]
[null,"308"]
["3 Betriebseinrichtungen","309","309 Übriges"]
["3 Betriebseinrichtungen"]
["3 Betriebseinrichtungen","31","31 Rohbau 1"]
[null,"310"]
["3 Betriebseinrichtungen","311","311 Baumeisterarbeiten"]
["3 Betriebseinrichtungen","311.0","      .0 Baustelleneinrichtung"]
["3 Betriebseinrichtungen","311.1","      .1 Gerüste"]
[null,"311.2"]
["3 Betriebseinrichtungen","311.3","      .3 Baumeisteraushub"]
["3 Betriebseinrichtungen","311.4","      .4 Kanalisationen im Gebäude"]
["3 Betriebseinrichtungen","311.5","      .5 Beton- und Stahlbetonarbeiten"]
["3 Betriebseinrichtungen","311.6","      .6 Maurerarbeiten"]
["3 Betriebseinrichtungen","311.7","      .7 Instandsetzungsarbeiten"]
[null,"311.8"]
[null,"311.9"]
["3 Betriebseinrichtungen","312","312 Montagebau in Beton und vorfabriziertem Mauerwerk"]
["3 Betriebseinrichtungen","313","313 Montagebau in Stahl"]
["3 Betriebseinrichtungen","314","314 Montagebau in Holz"]
["3 Betriebseinrichtungen","315","315 Montagebau als Leichtkonstruktionen"]
["3 Betriebseinrichtungen","316","316 Natur- und Kunststeinarbeiten"]
["3 Betriebseinrichtungen","317","317 Schutzraumabschlüsse"]
[null,"318"]
["3 Betriebseinrichtungen","319","319 Übriges"]
["3 Betriebseinrichtungen"]
["3 Betriebseinrichtungen","32","32 Rohbau 2"]
["3 Betriebseinrichtungen","320","320 Übergansposition"]
["3 Betriebseinrichtungen","321","321 Fenster, Aussentüren, Tore"]
["3 Betriebseinrichtungen","322","322 Spenglerarbeiten"]
["3 Betriebseinrichtungen","323","323 Blitzschutz"]
["3 Betriebseinrichtungen","324","324 Bedachungsarbeiten"]
["3 Betriebseinrichtungen","325","325 Spezielle Dichtungen und Dämmungen"]
["3 Betriebseinrichtungen","326","326 Fassadenputze"]
["3 Betriebseinrichtungen","327","327 Äussere Oberflächenbehandlungen"]
["3 Betriebseinrichtungen","328","328 Äussere Abschlüsse, Sonnenschutz"]
["3 Betriebseinrichtungen","329","329 Übriges"]
["3 Betriebseinrichtungen"]
["3 Betriebseinrichtungen","33","33 Elektroanlagen"]
["3 Betriebseinrichtungen","330","330 Übergangsposition"]
["3 Betriebseinrichtungen","331","331 Apparate Starkstrom"]
["3 Betriebseinrichtungen","332","332 Starkstrominstallationen"]
["3 Betriebseinrichtungen","333","333 Leuchten und Lampen"]
["3 Betriebseinrichtungen","334","334 Energieverbraucher"]
["3 Betriebseinrichtungen","335","335 Apparate Schwachstrom"]
["3 Betriebseinrichtungen","336","336 Schwachstrominstallationen"]
["3 Betriebseinrichtungen","337","337 Gebäudeautomation"]
["3 Betriebseinrichtungen","338","338 Bauprovisorium"]
["3 Betriebseinrichtungen","339","339 Übriges"]
["3 Betriebseinrichtungen"]
["3 Betriebseinrichtungen","34","34 Heizungs-, Lüftungs-, Klima- und Kälteanlagen"]
["3 Betriebseinrichtungen","340","340 Übergangsposition"]
["3 Betriebseinrichtungen","341","341 Zulieferung Energieträger, Lagerung"]
["3 Betriebseinrichtungen","342","342 Wärmeerzeugung"]
["3 Betriebseinrichtungen","343","343 Wärmeverteilung"]
["3 Betriebseinrichtungen","344","344 Lüftungsanlagen"]
["3 Betriebseinrichtungen","345","345 Klimaanlagen"]
["3 Betriebseinrichtungen","346","346 Kälteanlagen"]
["3 Betriebseinrichtungen","347","347 Spezialanlagen"]
["3 Betriebseinrichtungen","348","348 Dämmungen HLK-Installationen"]
["3 Betriebseinrichtungen","349","349 Übriges"]
["3 Betriebseinrichtungen"]
["3 Betriebseinrichtungen","35","35 Sanitäranlagen"]
["3 Betriebseinrichtungen","350","350 Übergangsposition"]
["3 Betriebseinrichtungen","351","351 Allgemeine Sanitärapparate"]
["3 Betriebseinrichtungen","352","352 Spezielle Sanitärapparate"]
["3 Betriebseinrichtungen","353","353 Sanitäre Ver- und Entsorgungsapparate"]
["3 Betriebseinrichtungen","354","354 Sanitärleitungen"]
["3 Betriebseinrichtungen","355","355 Dämmungen Sanitärinstallationen"]
["3 Betriebseinrichtungen","356","356 Sanitärinstallationselemente"]
["3 Betriebseinrichtungen","357","357 Elektro- und Pneumatiktafeln"]
["3 Betriebseinrichtungen","358","358 Kücheneinrichtungen"]
["3 Betriebseinrichtungen","359","359 Übriges"]
["3 Betriebseinrichtungen"]
["3 Betriebseinrichtungen","36","36 Transportanlagen, Lageranlagen"]
["3 Betriebseinrichtungen","360","360 Übergangsposition"]
["3 Betriebseinrichtungen","361","361 Aufzüge"]
["3 Betriebseinrichtungen","362","362 Fahrtreppen, Fahrsteige"]
[null,"363"]
["3 Betriebseinrichtungen","364","364 Sonstige Förderanlagen"]
["3 Betriebseinrichtungen","365","365 Hebeeinrichtungen"]
["3 Betriebseinrichtungen","366","366 Parkieranlagen"]
[null,"367"]
["3 Betriebseinrichtungen","368","368 Sonstige Lageranlagen"]
["3 Betriebseinrichtungen","369","369 Übriges"]
["3 Betriebseinrichtungen"]
["3 Betriebseinrichtungen","37","37 Ausbau 1"]
["3 Betriebseinrichtungen","370","370 Übergangsposition"]
["3 Betriebseinrichtungen","371","371 Gipserarbeiten"]
["3 Betriebseinrichtungen","372","372 Metallbauarbeiten"]
["3 Betriebseinrichtungen","373","373 Schreinerarbeiten"]
["3 Betriebseinrichtungen","374","374 Spezialverglasungen (innere)"]
["3 Betriebseinrichtungen","375","375 Schliessanlagen"]
["3 Betriebseinrichtungen","376","376 Innere Abschlüsse"]
["3 Betriebseinrichtungen","377","377 Elementwände"]
[null,"378"]
["3 Betriebseinrichtungen","379","379 Übriges"]
["3 Betriebseinrichtungen"]
["3 Betriebseinrichtungen","38","38 Ausbau 2"]
["3 Betriebseinrichtungen","380","380 Übergangsposition"]
["3 Betriebseinrichtungen","381","381 Bodenbeläge"]
["3 Betriebseinrichtungen","382","382 Wandbeläge, Wandbekleidungen"]
["3 Betriebseinrichtungen","383","383 Deckenbekleidungen"]
["3 Betriebseinrichtungen","384","384 Hafnerarbeiten"]
["3 Betriebseinrichtungen","385","385 Innere Oberflächenbehandlungen"]
["3 Betriebseinrichtungen","386","386 Bauaustrocknung"]
["3 Betriebseinrichtungen","387","387 Baureinigung"]
["3 Betriebseinrichtungen","388","388 Gärtnerarbeiten (Betriebseinrichtungen)"]
["3 Betriebseinrichtungen","389","389 Übriges"]
["3 Betriebseinrichtungen"]
["3 Betriebseinrichtungen","39","39 Honorare"]
["3 Betriebseinrichtungen","390","390 Übergangsposition"]
["3 Betriebseinrichtungen","391","391 Architekt"]
["3 Betriebseinrichtungen","392","392 Bauingenieur"]
["3 Betriebseinrichtungen","393","393 Elektroingenieur"]
["3 Betriebseinrichtungen","394","394 HLK-Ingenieur"]
["3 Betriebseinrichtungen","395","395 Sanitäringenieur"]
["3 Betriebseinrichtungen","396","396 Spezialisten"]
[null,"397"]
["3 Betriebseinrichtungen","398","398 Gebäudeautomationsingenieur"]
["3 Betriebseinrichtungen","399","399 Übriges"]
["3 Betriebseinrichtungen"]
[]
["4 Umgebung"]
[null,"4","Umgebung"]
["4 Umgebung","40","40 Terraingestaltung"]
["4 Umgebung","400","400 Übergangsposition"]
["4 Umgebung","401","401 Erdbewegungen"]
["4 Umgebung","401.0","      .0 Baustelleneinrichtung"]
["4 Umgebung","401.1","      .1 Erdarbeiten"]
[null,"401.2"]
[null,"401.3"]
[null,"401.4"]
[null,"401.5"]
[null,"401.6"]
[null,"401.7"]
[null,"401.8"]
[null,"401.9"]
[null,"402"]
[null,"403"]
[null,"404"]
[null,"405"]
[null,"406"]
[null,"407"]
[null,"408"]
["4 Umgebung","409","409 Übriges"]
["4 Umgebung"]
["4 Umgebung","41","41 Roh- und Ausbauarbeiten"]
["4 Umgebung","410","410 Übergangsposition"]
["4 Umgebung","411","411 Baumeisterarbeiten"]
["4 Umgebung","411.0","      .0 Baustelleneinrichtung"]
["4 Umgebung","411.1","      .1 Gerüste"]
["4 Umgebung","411.2","      .2 Böschungs-, Uferverbauungen"]
["4 Umgebung","411.3","      .3 Baumeisteraushub"]
["4 Umgebung","411.4","      .4 Kanalisationen ausserhalb Gebäude"]
["4 Umgebung","411.5","      .5 Beton- und Stahlbetonarbeiten"]
["4 Umgebung","411.6","      .6 Maurerarbeiten"]
["4 Umgebung","411.7","      .7 Instandsetzungsarbeiten"]
[null,"411.8"]
[null,"411.9"]
[null,"412"]
["4 Umgebung","413","413 Übriger Rohbau 1"]
[null,"413.1"]
["4 Umgebung","413.2","      .2 Montagebau in Beton und vorfabriziertem Mauerwerk"]
["4 Umgebung","413.3","      .3 Montagebau in Stahl"]
["4 Umgebung","413.4","      .4 Montagebau in Holz"]
["4 Umgebung","413.5","      .5 Montagebau als Leichtkonstruktion"]
["4 Umgebung","413.6","      .6 Natur- und Kunststeinarbeiten"]
["4 Umgebung","413.7","      .7 Schutzraumteile"]
[null,"413.8"]
[null,"413.9"]
["4 Umgebung","414","414 Rohbau 2"]
["4 Umgebung","414.1","      .1 Fenster, Aussentüren, Tore"]
["4 Umgebung","414.2","      .2 Spenglerarbeiten"]
["4 Umgebung","414.3","      .3 Blitzschutz"]
["4 Umgebung","414.4","      .4 Bedachungsarbeiten"]
["4 Umgebung","414.5","      .5 Spezielle Dichtungen und Dämmungen"]
["4 Umgebung","414.6","      .6 Fassadenputze"]
["4 Umgebung","414.7","      .7 Äussere Oberflächenbehandlungen"]
["4 Umgebung","414.8","      .8 Äussere Abschlüsse, Sonnenschutz"]
["4 Umgebung","414.9","      .9 Arealabschlüsse"]
["4 Umgebung","415","415 Ausbau 1"]
["4 Umgebung","415.1","      .1 Gipserarbeiten"]
["4 Umgebung","415.2","      .2 Metallbauarbeiten"]
["4 Umgebung","415.3","      .3 Schreinerarbeiten"]
["4 Umgebung","415.4","      .4 Spezialverglasungen"]
["4 Umgebung","415.5","      .5 Schliessanlagen"]
["4 Umgebung","415.6","      .6 Innere Abschlüsse"]
["4 Umgebung","415.7","      .7 Elementwände"]
[null,"415.8"]
[null,"415.9"]
["4 Umgebung","416","416 Ausbau 2"]
["4 Umgebung","416.1","      .1 Bodenbeläge"]
["4 Umgebung","416.2","      .2 Wandbeläge, Wandbekleidungen"]
["4 Umgebung","416.3","      .3 Deckenbekleidungen"]
["4 Umgebung","416.4","      .4 Hafnerarbeiten"]
["4 Umgebung","416.5","      .5 Innere Oberflächenbehandlungen"]
[null,"416.6"]
[null,"416.7"]
[null,"416.8"]
[null,"416.9"]
[null,"417"]
[null,"418"]
["4 Umgebung","419","419 Übriges"]
["4 Umgebung"]
["4 Umgebung","42","42 Gartenanlagen"]
["4 Umgebung","420","420 Übergangsposition"]
["4 Umgebung","421","421 Gärtnerarbeiten"]
["4 Umgebung","422","422 Einfriedungen"]
["4 Umgebung","423","423 Ausstattungen, Geräte"]
["4 Umgebung","424","424 Spiel- und Sportplätze"]
[null,"425"]
[null,"426"]
[null,"427"]
[null,"428"]
["4 Umgebung","429","429 Übriges"]
["4 Umgebung"]
["4 Umgebung","43","43 Reserve"]
[null,"430"]
[null,"431"]
[null,"432"]
[null,"433"]
[null,"434"]
[null,"435"]
[null,"436"]
[null,"437"]
[null,"438"]
[null,"439"]
["4 Umgebung"]
["4 Umgebung","44","44 Installationen"]
["4 Umgebung","440","440 Übergangsposition"]
[null,"441"]
[null,"442"]
["4 Umgebung","443","443 Elektroanlagen"]
["4 Umgebung","444","444 Heizungs-, Lüftungs-, Klima-, Kälteanlagen"]
["4 Umgebung","445","445 Sanitäranlagen"]
["4 Umgebung","446","446 Transportanlagen"]
[null,"447"]
[null,"448"]
["4 Umgebung","449","449 Übriges"]
["4 Umgebung"]
["4 Umgebung","45","45 Erschliessung durch Leitungen (innerhalb Grundstück)"]
["4 Umgebung","450","450 Übergangsposition"]
["4 Umgebung","451","451 Erdarbeiten"]
["4 Umgebung","452","452 Kanalisationsleitungen"]
["4 Umgebung","453","453 Elektroleitungen"]
["4 Umgebung","454","454 Heizungs-, Lüftungs-, Klima-, Kälteleitungen"]
["4 Umgebung","455","455 Sanitärleitungen"]
["4 Umgebung","456","456 Nebenarbeiten"]
[null,"457"]
[null,"458"]
["4 Umgebung","459","459 Übriges"]
["4 Umgebung"]
["4 Umgebung","46","46 Kleinere Trassenbauten"]
["4 Umgebung","460","460 Übergangsposition"]
["4 Umgebung","461","461 Erd- und Unterbau"]
["4 Umgebung","462","462 Kleine Kunstbauten"]
["4 Umgebung","463","463 Oberbau"]
["4 Umgebung","464","464 Entwässerung"]
["4 Umgebung","465","465 Werkleitungen und Kanalisationen"]
[null,"466"]
[null,"467"]
["4 Umgebung","468","468 Ausbau"]
[null,"469"]
["4 Umgebung"]
["4 Umgebung","47","47 Kleinere Kunstbauten"]
["4 Umgebung","470","470 Übergangsposition"]
["4 Umgebung","471","471 Baugrube"]
["4 Umgebung","472","472 Tragkonstruktion"]
["4 Umgebung","473","473 Oberbau"]
["4 Umgebung","474","474 Entwässerung"]
["4 Umgebung","475","475 Werkleitungen und Kanalisationen"]
[null,"476"]
["4 Umgebung","477","477 Transportanlagen"]
["4 Umgebung","478","478 Ausbau"]
[null,"479"]
["4 Umgebung"]
["4 Umgebung","48","48 Kleinere Untertagbauten"]
["4 Umgebung","480","480 Übergangsposition"]
["4 Umgebung","481","481 Vortrieb"]
["4 Umgebung","482","482 Auskleidung, Gewölbe"]
["4 Umgebung","483","483 Oberbau"]
["4 Umgebung","484","484 Entwässerung und Wasserversorgung"]
["4 Umgebung","485","485 Werkleitungen und Kanalisationen"]
[null,"486"]
["4 Umgebung","487","487 Transportanlagen"]
["4 Umgebung","488","488 Ausbau"]
[null,"489"]
["4 Umgebung"]
["4 Umgebung","49","49 Honorare"]
["4 Umgebung","490","490 Übergangsposition"]
["4 Umgebung","491","491 Architekt"]
["4 Umgebung","492","492 Bauingenieur"]
["4 Umgebung","493","493 Elektroingenieur"]
["4 Umgebung","494","494 HLK-Ingenieur"]
["4 Umgebung","495","495 Sanitäringenieur"]
["4 Umgebung","496","496 Spezialisten"]
["4 Umgebung","496.0","      .0 Geometer"]
["4 Umgebung","496.1","      .1 Geologe, Geotechniker"]
["4 Umgebung","496.2","      .2 Innenarchitekt"]
["4 Umgebung","496.3","      .3 Bauphysiker"]
["4 Umgebung","496.4","      .4 Akustiker"]
["4 Umgebung","496.5","      .5 Landschaftsarchitekt"]
["4 Umgebung","496.6","      .6 Bauökonom"]
[null,"496.7"]
[null,"496.8"]
[null,"496.9"]
[null,"497"]
["4 Umgebung","498","498 Gebäudeautomationsingenieur"]
["4 Umgebung","499","499 Übriges"]
["4 Umgebung"]
[]
["5 Baunebenkosten und Übergangskonten"]
[null,"5","Baunebenkosten und Übergangskonten"]
["5 Baunebenkosten und Übergangskonten","50","50 Wettbewerbskosten"]
["5 Baunebenkosten und Übergangskonten","500","500 Übergangsposition"]
["5 Baunebenkosten und Übergangskonten","501","501 Architekturwettbewerbe"]
["5 Baunebenkosten und Übergangskonten","502","502 Ingenieurwettbewerbe"]
["5 Baunebenkosten und Übergangskonten","503","503 Wettbewerbe für Umgebungsgestaltung"]
["5 Baunebenkosten und Übergangskonten","504","504 Wettbewerbe für künstlerische Gestaltung"]
["5 Baunebenkosten und Übergangskonten","505","505 Städtebaulicher Wettbewerb"]
["5 Baunebenkosten und Übergangskonten","506","506 Innenarchitekturwettbewerb"]
[null,"507"]
[null,"508"]
["5 Baunebenkosten und Übergangskonten","509","509 Übriges"]
["5 Baunebenkosten und Übergangskonten"]
["5 Baunebenkosten und Übergangskonten","51","51 Bewilligungen, Gebühren"]
["5 Baunebenkosten und Übergangskonten","510","510 Übergangsposition"]
["5 Baunebenkosten und Übergangskonten","511","511 Bewilligungen, Baugespann (Gebühren)"]
["5 Baunebenkosten und Übergangskonten","512","512 Anschlussgebühren"]
["5 Baunebenkosten und Übergangskonten","512.0","      .0 Kanalisation"]
["5 Baunebenkosten und Übergangskonten","512.1","      .1 Elektrizität"]
["5 Baunebenkosten und Übergangskonten","512.2","      .2 Übermittlung"]
["5 Baunebenkosten und Übergangskonten","512.3","      .3 Gas"]
["5 Baunebenkosten und Übergangskonten","512.4","      .4 Wasser"]
["5 Baunebenkosten und Übergangskonten","512.5","      .5 Fernheizung"]
["5 Baunebenkosten und Übergangskonten","512.6","      .6 Medien"]
[null,"512.7"]
[null,"512.8"]
[null,"512.9"]
[null,"513"]
[null,"514"]
[null,"515"]
[null,"516"]
[null,"517"]
[null,"518"]
["5 Baunebenkosten und Übergangskonten","519","519 Übriges"]
["5 Baunebenkosten und Übergangskonten","519.1","      .1 Schutzraumersatzabgaben"]
["5 Baunebenkosten und Übergangskonten","52","52 Muster, Modelle, Vervielfältigungen, Dokumentation"]
["5 Baunebenkosten und Übergangskonten","520","520 Übergangsposition"]
["5 Baunebenkosten und Übergangskonten","521","521 Muster, Materialprüfungen"]
["5 Baunebenkosten und Übergangskonten","521.0","      .0 Muster"]
["5 Baunebenkosten und Übergangskonten","521.1","      .1 Materialprüfungen"]
[null,"521.2"]
[null,"521.3"]
[null,"521.4"]
[null,"521.5"]
[null,"521.6"]
[null,"521.7"]
[null,"521.8"]
[null,"521.9"]
["5 Baunebenkosten und Übergangskonten","522","522 Modelle"]
["5 Baunebenkosten und Übergangskonten","523","523 Fotos"]
["5 Baunebenkosten und Übergangskonten","524","524 Vervielfältigungen, Plankopien"]
["5 Baunebenkosten und Übergangskonten","525","525 Dokumentation"]
[null,"526"]
[null,"527"]
[null,"528"]
["5 Baunebenkosten und Übergangskonten","529","529 Übriges"]
["5 Baunebenkosten und Übergangskonten"]
["5 Baunebenkosten und Übergangskonten","53","53 Versicherungen"]
["5 Baunebenkosten und Übergangskonten","530","530 Übergangsposition"]
["5 Baunebenkosten und Übergangskonten","531","531 Bauzeitversicherungen"]
["5 Baunebenkosten und Übergangskonten","532","532 Spezialversicherungen"]
["5 Baunebenkosten und Übergangskonten","533","533 Selbstbehalt in Schadenfällen während der Bauzeit"]
[null,"534"]
[null,"535"]
[null,"536"]
[null,"537"]
[null,"538"]
["5 Baunebenkosten und Übergangskonten","539","539 Übriges"]
["5 Baunebenkosten und Übergangskonten"]
["5 Baunebenkosten und Übergangskonten","54","54 Finanzierung ab Baubeginn"]
["5 Baunebenkosten und Übergangskonten","540","540 Übergangsposition"]
["5 Baunebenkosten und Übergangskonten","541","541 Errichten von Hypotheken auf Liegenschaften"]
["5 Baunebenkosten und Übergangskonten","542","542 Baukreditzinsen, Bankspesen"]
["5 Baunebenkosten und Übergangskonten","543","543 Baurechtszinsen"]
[null,"544"]
["5 Baunebenkosten und Übergangskonten","545","545 Eigenkapitalzinsen"]
["5 Baunebenkosten und Übergangskonten","546","546 Liegenschaftensteuer während der Bauzeit"]
[null,"547"]
["5 Baunebenkosten und Übergangskonten","548","548 Rückvergütungen"]
["5 Baunebenkosten und Übergangskonten","549","549 Übriges"]
["5 Baunebenkosten und Übergangskonten"]
["5 Baunebenkosten und Übergangskonten"]
["5 Baunebenkosten und Übergangskonten","55","55 Bauherrenleistungen"]
["5 Baunebenkosten und Übergangskonten","550","550 Übergangsposition"]
[null,"551"]
[null,"552"]
[null,"553"]
[null,"554"]
[null,"555"]
[null,"556"]
["5 Baunebenkosten und Übergangskonten","557","557 Betriebsplanung"]
["5 Baunebenkosten und Übergangskonten","558","558 Projektleitung, Projektbegleitung"]
["5 Baunebenkosten und Übergangskonten","559","559 Übriges"]
["5 Baunebenkosten und Übergangskonten"]
["5 Baunebenkosten und Übergangskonten","56","56 Übrige Baunebenkosten"]
["5 Baunebenkosten und Übergangskonten","560","560 Übergangsposition"]
["5 Baunebenkosten und Übergangskonten","561","561 Bewachung durch Dritte"]
["5 Baunebenkosten und Übergangskonten","562","562 Nachbar- und Mieterentschädigungen, Nutzerkosten"]
["5 Baunebenkosten und Übergangskonten","563","563 Miete von fremdem Grund"]
["5 Baunebenkosten und Übergangskonten","564","564 Gutachten"]
["5 Baunebenkosten und Übergangskonten","565","565 Reisespesen"]
["5 Baunebenkosten und Übergangskonten","566","566 Grundsteinlegung, Aufrichte, Einweihung"]
["5 Baunebenkosten und Übergangskonten","567","567 Anwaltskosten, Gerichtskosten"]
["5 Baunebenkosten und Übergangskonten","568","568 Baureklame"]
["5 Baunebenkosten und Übergangskonten","569","569 Übriges"]
["5 Baunebenkosten und Übergangskonten"]
["5 Baunebenkosten und Übergangskonten","57","57 Mehrwertsteuer (MWSt)"]
["5 Baunebenkosten und Übergangskonten","570","570 Übergangsposition (MWSt)"]
["5 Baunebenkosten und Übergangskonten","571","571 Grundstück (MWSt)"]
["5 Baunebenkosten und Übergangskonten","572","572 Vorbereitungsarbeiten (MWSt)"]
["5 Baunebenkosten und Übergangskonten","573","573 Gebäude (MWSt)"]
["5 Baunebenkosten und Übergangskonten","574","574 Betriebseinrichtungen (MWSt)"]
["5 Baunebenkosten und Übergangskonten","575","575 Umgebung (MWSt)"]
["5 Baunebenkosten und Übergangskonten","576","576 Baunebenkosten und Übergangskosten (MWSt)"]
[null,"577"]
[null,"578"]
["5 Baunebenkosten und Übergangskonten","579","579 Ausstattung (MWSt)"]
["5 Baunebenkosten und Übergangskonten"]
["5 Baunebenkosten und Übergangskonten","58","58 Übergangskonten für Rückstellungen und Reserven"]
["5 Baunebenkosten und Übergangskonten","580","580 Übergangsposition"]
["5 Baunebenkosten und Übergangskonten","581","581 Rückstellungen für zu erwartende Kosten"]
["5 Baunebenkosten und Übergangskonten","582","582 Reserven für Teuerung"]
["5 Baunebenkosten und Übergangskonten","583","583 Reserven für Unvorhergesehenes"]
[null,"584"]
[null,"585"]
[null,"586"]
[null,"587"]
[null,"588"]
["5 Baunebenkosten und Übergangskonten","589","589 Übriges"]
["5 Baunebenkosten und Übergangskonten"]
["5 Baunebenkosten und Übergangskonten","59","59 Übergangskonten für Honorare"]
["5 Baunebenkosten und Übergangskonten","590","590 Übergangsposition"]
["5 Baunebenkosten und Übergangskonten","591","591 Architekt"]
["5 Baunebenkosten und Übergangskonten","592","592 Bauingenieur"]
["5 Baunebenkosten und Übergangskonten","593","593 Elektroingenieur"]
["5 Baunebenkosten und Übergangskonten","594","594 HLK-Ingenieur"]
["5 Baunebenkosten und Übergangskonten","595","595 Sanitäringenieur"]
["5 Baunebenkosten und Übergangskonten","596","596 Spezialisten"]
["5 Baunebenkosten und Übergangskonten","596.0","      .0 Geometer"]
["5 Baunebenkosten und Übergangskonten","596.1","      .1 Geologe, Geotechniker"]
["5 Baunebenkosten und Übergangskonten","596.2","      .2 Innenarchitekt"]
["5 Baunebenkosten und Übergangskonten","596.3","      .3 Bauphysiker"]
["5 Baunebenkosten und Übergangskonten","596.4","      .4 Akustiker"]
["5 Baunebenkosten und Übergangskonten","596.5","      .5 Landschaftsarchitekt"]
["5 Baunebenkosten und Übergangskonten","596.6","      .6 Bauökonom"]
[null,"596.7"]
[null,"596.8"]
[null,"596.9"]
[null,"597"]
["5 Baunebenkosten und Übergangskonten","598","598 Gebäudeautomationsingenieur"]
["5 Baunebenkosten und Übergangskonten","599","599 Übriges"]
["5 Baunebenkosten und Übergangskonten"]
[]
["6-8 Reserve"]
[null,"6","Reserve"]
[null,"60"]
[null,"600"]
[null,"601"]
[null,"602"]
[null,"603"]
[null,"604"]
[null,"605"]
[null,"606"]
[null,"607"]
[null,"608"]
[null,"609"]
[null,"7","Reserve"]
[null,"70"]
[null,"700"]
[null,"701"]
[null,"702"]
[null,"703"]
[null,"704"]
[null,"705"]
[null,"706"]
[null,"707"]
[null,"708"]
[null,"709"]
[null,"8","Reserve"]
[null,"80"]
[null,"800"]
[null,"801"]
[null,"802"]
[null,"803"]
[null,"804"]
[null,"805"]
[null,"806"]
[null,"807"]
[null,"808"]
[null,"809"]
[]
["9 Ausstattung"]
[null,"9","Ausstattung"]
["9 Ausstattung","90","90 Möbel"]
["9 Ausstattung","900","900 Übergangsposition"]
["9 Ausstattung","901","901 Garderobeneinrichtungen, Gestelle und dgl."]
["9 Ausstattung","902","902 Sporteinrichtungen"]
[null,"902.0"]
["9 Ausstattung","902.1","      .1 Sporthallen"]
["9 Ausstattung","902.2","      .2 Krafträume"]
["9 Ausstattung","902.3","      .3 Gymnastikräume"]
[null,"902.4"]
[null,"902.5"]
[null,"902.6"]
[null,"902.7"]
[null,"902.8"]
[null,"902.9"]
[null,"903"]
[null,"904"]
[null,"905"]
[null,"906"]
[null,"907"]
["9 Ausstattung","908","908 Schutzraumausstattungen"]
["9 Ausstattung","909","909 Übriges"]
["9 Ausstattung"]
["9 Ausstattung","91","91 Beleuchtungskörper"]
["9 Ausstattung","910","910 Übergangsposition"]
[null,"911"]
[null,"912"]
[null,"913"]
[null,"914"]
[null,"915"]
[null,"916"]
[null,"917"]
[null,"918"]
["9 Ausstattung","919","919 Übriges"]
["9 Ausstattung"]
["9 Ausstattung","92","92 Textilien"]
["9 Ausstattung","920","920 Übergangsposition"]
["9 Ausstattung","921","921 Vorhänge und Innendekorationsarbeiten"]
[null,"922"]
[null,"923"]
[null,"924"]
[null,"925"]
[null,"926"]
[null,"927"]
[null,"928"]
["9 Ausstattung","929","929 Übriges"]
["9 Ausstattung"]
["9 Ausstattung","93","93 Geräte, Apparate"]
["9 Ausstattung","930","930 Übergangsposition"]
[null,"931"]
[null,"932"]
[null,"933"]
[null,"934"]
[null,"935"]
[null,"936"]
[null,"937"]
[null,"938"]
["9 Ausstattung","939","939 Übriges"]
["9 Ausstattung"]
["9 Ausstattung","94","94 Kleininventar"]
["9 Ausstattung","940","940 Übergangsposition"]
[null,"941"]
[null,"942"]
[null,"943"]
[null,"944"]
[null,"945"]
[null,"946"]
[null,"947"]
[null,"948"]
[null,"949","949 Übriges"]
["9 Ausstattung"]
["9 Ausstattung","95","95 Reserve"]
[null,"950"]
[null,"951"]
[null,"952"]
[null,"953"]
[null,"954"]
[null,"955"]
[null,"956"]
[null,"957"]
[null,"958"]
[null,"959"]
["9 Ausstattung"]
["9 Ausstattung","96","96 Transportmittel"]
["9 Ausstattung","960","960 Übergangsposition"]
[null,"961"]
[null,"962"]
[null,"963"]
[null,"964"]
[null,"965"]
[null,"966"]
[null,"967"]
[null,"968"]
["9 Ausstattung","969","969 Übriges"]
["9 Ausstattung"]
["9 Ausstattung","97","97 Verbrauchsmaterial"]
["9 Ausstattung","970","970 Übergangsposition"]
[null,"971"]
[null,"972"]
[null,"973"]
[null,"974"]
[null,"975"]
[null,"976"]
[null,"977"]
[null,"978"]
["9 Ausstattung","979","979 Übriges"]
["9 Ausstattung"]
["9 Ausstattung","98","98 Künstlerischer Schmuck"]
["9 Ausstattung","980","980 Übergangsposition"]
[null,"981"]
[null,"982"]
[null,"983"]
[null,"984"]
[null,"985"]
[null,"986"]
[null,"987"]
[null,"988"]
["9 Ausstattung","989","989 Übriges"]
["9 Ausstattung"]
["9 Ausstattung","99","99 Honorare"]
["9 Ausstattung","990","990 Übergangsposition"]
["9 Ausstattung","991","991 Architekt"]
[null,"992"]
["9 Ausstattung","993","993 Elektroingenieur"]
[null,"994"]
[null,"995"]
["9 Ausstattung","996","996 Spezialisten"]
[null,"996.0"]
[null,"996.1"]
["9 Ausstattung","996.2","      .2 Innenarchitekt"]
[null,"996.3"]
[null,"996.4"]
[null,"996.5"]
["9 Ausstattung","996.6","      .6 Bauökonom"]
[null,"996.7"]
[null,"996.8"]
[null,"996.9"]
[null,"997"]
[null,"998"]
["9 Ausstattung","999","999 Übriges"]
["9 Ausstattung"]

{"sheet":"eBKP-H","index":2,"n_rows":361,"n_cols":3,"rows_kept":361,"cut":false,"hidden":false,"merged":[]}
[null,"eBKP-H","Bez. eBKP-H"]
[]
["A","A","Grundstück"]
["A","A0"]
["A","A1","Grundstück Baurecht"]
["A","A1.1","Grundstückserwerb"]
["A","A1.2","Baurechtserwerb"]
["A","A1.3","Bauwerkserwerb"]
["A","A1.4","Perimeterbeitrag"]
["A","A2","Nebenkosten zu Grundstück Baurecht"]
["A","A2.1","Handänderungssteuer, Gewinnsteuer"]
["A","A2.2","Notariatskosten"]
["A","A2.3","Grundbuchgebühren"]
["A","A2.4","Anwaltskosten, Gerichtskosten"]
["A","A2.5","Vermittlungsprovision"]
["A","A2.6","Abfindung, Servitut"]
["A","A2.7","Vermessung, Vermarkung"]
["B","B","Vorbereitung"]
["B","B0"]
["B","B1","Untersuchung, Aufnahme, Messung"]
["B","B1.1","Baugrunduntersuchung"]
["B","B1.2","Bestandsaufnahme"]
["B","B1.3","Umweltmessung"]
["B","B1.4","Überwachung"]
["B","B2","Baustelleneinrichtung"]
["B","B2.1","Baustellenerschliessung"]
["B","B2.2","Versorgung, Entsorgung"]
["B","B2.3","Arbeitsraum, Aufenthaltsraum"]
["B","B2.4","Hebe-, Verlade-, Transport-, Lagereinrichtung"]
["B","B2.5","Einrichtung für Materialaufbereitung"]
["B","B2.6","Winterbaumassnahme"]
["B","B3","Provisorium"]
["B","B3.1","Provisorisches Rückhaltesystem"]
["B","B3.2","Provisorische Werkleitung"]
["B","B3.3","Provisorisches Gebäude"]
["B","B3.4","Provisorisches Verkehrsanlage"]
["B","B3.5","Provisorische Ausstattung"]
["B","B4","Erschliessung durch Werkleitungen"]
["B","B4.1","Kanalisationsleitung"]
["B","B4.2","Elektroleitung"]
["B","B4.3","Telekomunikationsleitung"]
["B","B4.4","Heizleitung, Kälteleitung"]
["B","B4.5","Wasserleitung"]
["B","B4.6","Gasleitung"]
["B","B5","Rückbau Entsorgung Bauwerk"]
["B","B5.1","Rückbau nicht kontaminiertes Bauwerk"]
["B","B5.2","Rückbau kontaminiertes Bauwerk"]
["B","B6","Baugrube"]
["B","B6.1","Abholzung, Rodung"]
["B","B6.2","Nicht kontaminierter Aushub"]
["B","B6.3","Kontaminierter Aushub"]
["B","B6.4","Böschungssicherung"]
["B","B6.5","Baugrubenabschluss"]
["B","B6.6","Materialeinbau"]
["B","B6.7","Wasserhaltung"]
["B","B7","Baugrundverbesserung, Bauwerkssicherung"]
["B","B7.1","Verbesserung von Baugründen"]
["B","B7.2","Pfählung"]
["B","B7.3","Unterfangung Bauwerk"]
["B","B7.4","Sicherung Bauwerk"]
["B","B8","Gerüst"]
["B","B8.1","Fassadengerüst"]
["B","B8.2","Arbeitsgerüst"]
["C","C","Konstruktion Gebäude"]
["C","C0"]
["C","C1","Bodenplatte, Fundament"]
["C","C1.1","Kanalisation Gebäude"]
["C","C1.2","Abdichtung, Dämmung Bodenplatte"]
["C","C1.3","Einzel-, Streifenfundament"]
["C","C1.4","Nicht tragende Bodenplatte"]
["C","C1.5","Tragende Bodenplatte"]
["C","C2","Wandkonstruktion"]
["C","C2.1","Aussenwandkonstruktion"]
["C","C2.2","Innenwandkonstruktion"]
["C","C3","Stützenkonstruktion"]
["C","C3.1","Aussenstütze"]
["C","C3.2","innenstütze"]
["C","C4","Decken-, Dachkonstruktion"]
["C","C4.1","Decke"]
["C","C4.2","Treppe, Rampe"]
["C","C4.3","Balkon"]
["C","C4.4","Dachkonstruktion"]
["C","C5","Ergänzende Leistungen zu Konstruktion"]
["C","C5.1","Durchbruch, Schlitz zu Konstruktion"]
["C","C5.2","Maschinensockel, Einlage"]
["D","D","Technik Gebäude"]
["D","D0"]
["D","D1","Elektroanlage"]
["D","D1.1","Apparat, Anlage Starkstrom"]
["D","D1.2","Installation Starkstrom"]
["D","D1.3","Leuchte"]
["D","D1.4","Elektrogerät"]
["D","D1.5","Apparat, Anlage Schwachstrom"]
["D","D1.6","Installation Schwachstrom"]
["D","D2","Automations-, Leit-, Komunikationssystem"]
["D","D2.1","Managementebene"]
["D","D2.2","Automationsebene"]
["D","D2.3","Feldebene"]
["D","D2.4","Raumautomation"]
["D","D2.5","Automationsnetzwerk"]
["D","D2.6","Schaltgerätekompination"]
["D","D2.7","Integration"]
["D","D3","Sicherheitssystem"]
["D","D3.1","Einbruch-, Überfallmeldeanlage"]
["D","D3.2","Zutrittskontrollanlage"]
["D","D3.3","Videoüberwachungsanlage"]
["D","D3.4","Perimeterschutz, Umgebungsschutz"]
["D","D4","Brandschutz"]
["D","D4.1","Brandmeldeanlage"]
["D","D4.2","Gasmeldeanlage"]
["D","D4.3","Nasslöschanlage"]
["D","D4.4","Trockenlöschanlage"]
["D","D4.5","Löschgerät"]
["D","D4.6","Rauch- und Wärmeabzugsanlage"]
["D","D5","Wärmeanlage"]
["D","D5.1","Lagerung zu Wärmeanlage"]
["D","D5.2","Wärmeerzeugung"]
["D","D5.3","Wärmehauptverteilung"]
["D","D5.4","Wärmeabgabe"]
["D","D6","Kälteanlage"]
["D","D6.1","Lagerung zu Kälteanlage"]
["D","D6.2","Kälteerzeugung"]
["D","D6.3","Kältehauptverteilung"]
["D","D6.4","Kälteabgabe"]
["D","D7","Lufttechnische Anlage"]
["D","D7.1","Aussenluftführung, Fortluftführung"]
["D","D7.2","Luftaufbereitung"]
["D","D7.3","Lufthauptverteilung"]
["D","D7.4","Luftabgabe"]
["D","D7.5","Kleinanlage für Zuluft, Abluft"]
["D","D8","Wasser,- Gas,- Druckluftanlage"]
["D","D8.1","Armatur, Apparat"]
["D","D8.2","Installationselement"]
["D","D8.3","Wasseraufbereitungsanlage, Abwasseraufbereitungsanlage"]
["D","D8.4","Versorgungsleitungen"]
["D","D8.5","Entsorgungsleitungen"]
["D","D8.6","Gasleitungen"]
["D","D8.7","Druckluftanlage, Vakuumanlage"]
["D","D9","Transportanlage"]
["D","D9.1","Personenaufzug"]
["D","D9.2","Lastenaufzug"]
["D","D9.3","Bettenaufzug"]
["D","D9.4","Fahrtreppe, Fahrsteig"]
["D","D9.5","Hubtisch, Verladestation, Spezialaufzug"]
["D","D9.6","Parkieranlage"]
["D","D9.7","Weitere Transportanlagen"]
["E","E","Äussere Wandbekleidung Gebäude"]
["E","E0"]
["E","E1","Äussere Wandbekleidung unter Terrain"]
["E","E1.1","Wandabdichtung unter Terrain"]
["E","E1.2","Aussenwärmedämmung unter Terrain"]
["E","E1.3","Schutzschicht unter Terrain"]
["E","E2","Äussere Wandbekleidung über Terrain"]
["E","E2.1","Äussere Beschichtung"]
["E","E2.2","Aussenwärmedämmung"]
["E","E2.3","Fassadenbekleidung"]
["E","E2.4","Fassadensystem"]
["E","E2.5","Bekleidung Untersicht"]
["E","E2.6","Absturzsicherung"]
["E","E3","Einbauten, Absturzsicherung zu Aussenwand"]
["E","E3.1","Fenster"]
["E","E3.2","Tür, Tor"]
["E","E3.3","Sonnenschutz"]
["F","F","Bedachung Gebäude"]
["F","F0"]
["F","F1","Dachhaut"]
["F","F1.1","Dachabdichtung unter Terrain"]
["F","F1.2","Flachdach"]
["F","F1.3","Geneites Dach"]
["F","F1.4","Blitzschutz"]
["F","F2","Einbauten, Absturzsicherung zu Dach"]
["F","F2.1","Einbauten zu Flachdach"]
["F","F2.2","Einbauten zu geneigtem Dach"]
["G","G","Ausbau Gebäude"]
["G","G0"]
["G","G1","Trennwand, Tür, Tor, Fenster"]
["G","G1.1","Feststehende Trennwand"]
["G","G1.2","Bewegliche Trennwand"]
["G","G1.3","Innenfenster"]
["G","G1.4","Innentür, innentor"]
["G","G1.5","Verdunklung"]
["G","G2","Bodenbelag"]
["G","G2.1","Unterkonstruktion zu Bodenbelag"]
["G","G2.2","Fertiger Bodenbelag"]
["G","G3","Wand- und Stützenbekleidung"]
["G","G3.1","Unterkonstruktion zu Wandbekleidung"]
["G","G3.2","Fertige Wandbekleidung"]
["G","G4","Decken- und Dachbekleidung"]
["G","G4.1","Unterkonstruktion zu Deckenbekleidung"]
["G","G4.2","Fertige Deckenbekleidung"]
["G","G5","Einbauten, Absturzsicherung zu Ausbau"]
["G","G5.1","Einbauschrank, Regal"]
["G","G5.2","Einbauküche"]
["G","G5.3","Innerer Fensterausbau"]
["G","G5.4","Schutzeinrichtung Umgebung"]
["G","G5.5","Ofen, Cheminèe"]
["G","G5.6","Kleinbauteil"]
["G","G5.7","Begrünung im Gebäude"]
["G","G6","Ergänzende Leistungen zu Ausbau"]
["G","G6.1","Durchbruch, Schlitz zu Ausbau"]
["G","G6.2","Abschottung"]
["G","G6.3","Reinigung"]
["H","H","Nutzunsspezifische Anlage Gebäude"]
["H","H0"]
["H","H1","Produktions-, Laboranlagen"]
["H","H1.1"]
["H","H1.2"]
["H","H1.3"]
["H","H1.4"]
["H","H2","Grossküche"]
["H","H2.1"]
["H","H2.2"]
["H","H2.3"]
["H","H2.4"]
["H","H3","Wäscherei-, Reinigungsanlage"]
["H","H3.1"]
["H","H3.2"]
["H","H3.3"]
["H","H3.4"]
["H","H4","Spitalanlage"]
["H","H4.1"]
["H","H4.2"]
["H","H4.3"]
["H","H4.4"]
["H","H4.5"]
["H","H4.6"]
["H","H4.7"]
["H","H4.8"]
["H","H4.9"]
["H","H4.10"]
["H","H5","Anlage für Bildung, Kultur"]
["H","H5.1"]
["H","H5.2"]
["H","H5.3"]
["H","H5.4"]
["H","H6","Sport-, Freizeitanlage"]
["H","H6.1"]
["H","H6.2"]
["H","H6.3"]
["H","H6.4"]
["H","H7","Weitere nutzungsspezifische Anlagen"]
["H","H7.1"]
["H","H7.2"]
["H","H7.3"]
["H","H7.4"]
["I","I","Umgebung Gebäude"]
["I","I0"]
["I","I1","Umgebungsgestalltung"]
["I","I1.1","Geländeanpassung"]
["I","I1.2","Böschungssicherung Umgebung"]
["I","I1.3","Schutz Pflanzenbestand"]
["I","I1.4","Entwässerung"]
["I","I2","Bauwerk in Umgebung"]
["I","I2.1","Stützmauer"]
["I","I2.2","Frei stehende Wand"]
["I","I2.3","Kleinbauwerk"]
["I","I3","Grünfläche"]
["I","I3.1","Vegetationsschicht"]
["I","I3.2","Rasen"]
["I","I3.3","Bepflanzung"]
["I","I3.4","Wasserfläche"]
["I","I4","Hartfläche"]
["I","I4.1","Fundationsschicht"]
["I","I4.2","Abschluss"]
["I","I4.3","Belag"]
["I","I4.4","Gleisoberbau"]
["I","I5","Schutzeinrichtung Umgebung"]
["I","I5.1","Rückhaltesystem"]
["I","I5.2","Einfriedung"]
["I","I5.3","Immissionsschutz"]
["I","I6","Technik Umgebung"]
["I","I6.1","Elektroanlage Umgebung"]
["I","I6.2","Wärmeanlage Umgebung"]
["I","I6.3","Kälteanlage Umgebung"]
["I","I6.4","Wasser-, Gas-, Druckluftanlage Umgebung"]
["I","I6.5","Transportanlage Umgebung"]
["I","I7","Ausstattung Umgebung"]
["I","I7.1","Ausstattungsgegenstand"]
["I","I7.2","Gerät Umgebung"]
["J","J","Ausstattung Gebäude"]
["J","J0"]
["J","J1","Mobiliar"]
["J","J1.1","Allgemeines Mobiliar"]
["J","J1.2","Nutzungsspezifisches Mobiliar"]
["J","J1.3","Mobile Leuchte"]
["J","J1.4","Signaletik"]
["J","J2","Kleininventar"]
["J","J2.1","Allgemeines Kleininventar"]
["J","J2.2","Nutzungsspezifisches Kleininventar"]
["J","J2.3","Mobiles Gerät"]
["J","J3","Textilien"]
["J","J3.1","Allgemeine Textilien"]
["J","J3.2","Nutzungsspezifische Textilien"]
["J","J4","Kunst am Bau"]
["J","J4.1","Kunstobjekt"]
["J","J4.2","Künstlerisch gestalltetes Bauteil"]
[null,"K"]
[null,"L"]
[null,"M"]
[null,"N"]
[null,"O"]
[null,"P"]
[null,"Q"]
[null,"R"]
[null,"S"]
[null,"T"]
[null,"U"]
["V","V","Planungskosten"]
["V","V0"]
["V","V1","Planer"]
["V","V1.1","Architekt"]
["V","V1.2","Buingenieur"]
["V","V1.3","Fachingenieur Gebäudetechnik"]
["V","V1.4","Spezialist"]
["V","V1.5","Generalplaner, Planergemeinschaft"]
["V","V2","Unternehmer"]
["V","V2.1","Beratung zur Planung"]
["V","V2.2","Vorbereitung zur Bewirtschaftung"]
["V","V3","Auftraggeber"]
["V","V3.1","Auswahlverfahren"]
["V","V3.2","Eigentümer"]
["V","V3.3","Betreiber"]
["V","V3.4","Nutzer"]
["V","V3.5","Berater"]
["W","W","Nebenkosten"]
["W","W0"]
["W","W1","Bewilligung, Gebühren"]
["W","W1.1","Bewilligung, Gebühren"]
["W","W1.2","Gebühr"]
["W","W2","Versicherung, Garantie"]
["W","W2.1","Versicherung"]
["W","W2.2","Garantie"]
["W","W2.3","Rückvergütung"]
["W","W3","Kapitalkosten"]
["W","W3.1","Kapitalkosten zu Grundstück"]
["W","W3.2","Kapitalkosten zu erstellung"]
["W","W4","Bewirtung, Öffentlichkeitsarbeit, Entschädigung"]
["W","W4.1","Bewirtungskosten"]
["W","W4.2","Öffentlichkeitsarbeit"]
["W","W4.3","Entschädigung, Bewachung"]
["W","W5","Inbetriebnahme"]
["W","W5.1","Inbetriebnahme baulicher Anlagen"]
["W","W6","Vermietung, Verkauf"]
["W","W6.1","Vergütung zu Erstvermietung"]
["W","W6.2","Nebenkosten zu Erstvermietung"]
["W","W6.3","Vergütung zu Verkauf"]
["W","W6.4","Nebenkosten zu Verkauf"]
["W","W7","Betriebserfolg"]
["W","W7.1","Betriebsaufwand"]
["W","W7.2","Betriebsertrag"]
[null,"X"]
["Y","Y","Reserve, Teuerung"]
["Y","Y0"]
["Y","Y1","Reserve, Teuerung"]
["Y","Y1.1","Reserve"]
["Y","Y2","Teuerung"]
["Y","Y2.1","Teuerung"]
["Z","Z","Mehrwertsteuer"]
["Z","Z0"]
["Z","Z1","Mehrwertsteuer"]
["Z","Z1.1","Mehrwertsteuer"]